Workbook

Sheet Boys Reg
A1: Team | B1: School/Bowlers | C1: Game 1 | D1: Game 2 | E1: Game 3 | F1: Team | G1: School/Bowlers | H1: Game 1 | I1: Game 2 | J1: Game 3
A2: 1 | B2: SJV | F2: 2 | G2: Ocean
B3: Chris Moran | C3: 113 | D3: 123 | G3: Jack Henry | H3: 202 | I3: 157 | J3: 176
B4: Matt Bruchez | C4: 116 | D4: 128 | E4: 151 | G4: Chris Munoz | H4: 190 | I4: 126 | J4: 147
B5: George Anderson | C5: 167 | D5: 158 | E5: 128 | G5: Michael DeGilio | H5: 207 | I5: 184 | J5: 221
B6: Zach Schiavone | C6: 162 | D6: 115 | E6: 183 | G6: Robbie Hughes | H6: 254 | I6: 185 | J6: 152
B7: John Vitali | C7: 147 | D7: 192 | E7: 202 | G7: Jason Norris | H7: 151 | I7: 168 | J7: 131
B8: Conor O'Grady | E8: 76 | G8: Kevin Reyes
G9: Nicholas Foy
B11: Total | C11: =SUM(C2:C10) -> 705 | D11: 716 | E11: 740 | G11: Total | H11: =SUM(H2:H10) -> 1004 | I11: 820 | J11: 827
A12: 3 | B12: Keansburg | F12: 4 | G12: Bayonne
B13: Joe Sautner | C13: 197 | D13: 103 | E13: 116 | G13: Efrain Gonzalez | H13: 107 | I13: 156 | J13: 167
B14: Dominick Grasso | C14: 128 | D14: 126 | E14: 110 | G14: Joe Novielli | H14: 154 | I14: 168 | J14: 142
B15: Kyle Scott | C15: 104 | D15: 137 | E15: 169 | G15: Jamarion Wright | H15: 151 | I15: 216 | J15: 179
B16: Brian Laskiewicz | C16: 124 | D16: 169 | E16: 120 | G16: Jake Peregrin | H16: 158 | I16: 169 | J16: 143
B17: Chris DeSantis | C17: 187 | D17: 151 | E17: 208 | G17: Matt Nilan | H17: 182 | I17: 204 | J17: 183
B21: Total | C21: =SUM(C12:C20) -> 740 | D21: 686 | E21: 723 | G21: Total | H21: =SUM(H12:H20) -> 752 | I21: 913 | J21: 814
A22: 5 | B22: Matawan | F22: 6 | G22: Henry Hudson
B23: Logan Grillo | C23: 144 | D23: 128 | E23: 173 | G23: Ralph D'Antonio | H23: 154 | I23: 123 | J23: 180
B24: Matt Lalor | C24: 111 | E24: 95 | G24: Jason Rockafellow | H24: 110 | I24: 158
B25: Ethan Liranzo | C25: 84 | G25: Chris Saunders | H25: 89
B26: Lucan DiGregorio | C26: 193 | D26: 146 | E26: 160 | G26: Jack Loiacono | H26: 158 | I26: 179 | J26: 175
B27: Aaron Reingold | C27: 190 | D27: 163 | E27: 212 | G27: Billy Miller | H27: 119 | I27: 137 | J27: 169
B28: Noah Ali | D28: 105 | E28: 70 | G28: Nick Brown | I28: 138 | J28: 135
B29: James Orleman | D29: 100 | G29: Matt Crossan | J29: 124
B31: Total | C31: =SUM(C22:C30) -> 722 | D31: 642 | E31: 710 | G31: Total | H31: =SUM(H22:H30) -> 630 | I31: 735 | J31: 783
A32: 7 | B32: Keyport | F32: 8 | G32: Roselle
B33: Michael Graham | C33: 85 | D33: 88 | E33: 78 | G33: ZiAyre Chevailer | H33: 124 | I33: 113 | J33: 102
B34: Christian Oldhafer | C34: 116 | D34: 95 | E34: 78 | G34: Hector Rosa | H34: 152 | I34: 108 | J34: 133
B35: Resse Mehan | C35: 118 | D35: 119 | E35: 148 | G35: Austin Torres | H35: 156 | I35: 211 | J35: 218
B36: Josh Vazquez | C36: 111 | D36: 122 | E36: 109 | G36: Elizjah Boone | H36: 163 | I36: 267 | J36: 202
B37: Jacen Shores | C37: 102 | D37: 137 | E37: 133 | G37: Luis Torres | H37: 193 | I37: 172 | J37: 217
B38: Hunter Yale | G38: James Luna Vazquez
B39: Jake Staeger
B40: Nick Royle
B41: Total | C41: =SUM(C32:C40) -> 532 | D41: 561 | E41: 546 | G41: Total | H41: =SUM(H32:H40) -> 788 | I41: 871 | J41: 872
A42: 9 | B42: Mater Dei | F42: 10 | G42: Lakewood
B43: Alphonse Vota | C43: 77 | D43: 116 | E43: 120 | G43: Daniel Sanchez | H43: 113 | I43: 152 | J43: 102
B44: Paris Merse | C44: 95 | D44: 113 | E44: 123 | G44: Marro Rojas | H44: 85 | J44: 93
B45: Hanna Hale | C45: 156 | D45: 135 | E45: 129 | G45: Kevin Cosme | H45: 111 | I45: 75
B46: Chris Pfirrman | C46: 98 | D46: 107 | E46: 111 | G46: Edgar Perez | H46: 115 | I46: 131 | J46: 109
B47: Joey Stanton | C47: 95 | D47: 125 | E47: 101 | G47: William Mosan | H47: 161 | I47: 151 | J47: 172
G48: Charles Kopcho | I48: 112 | J48: 89
G49: Sergio Vargas
G50: Carlos Palafox
B51: Total | C51: =SUM(C42:C50) -> 521 | D51: 596 | E51: 584 | G51: Total | H51: =SUM(H42:H50) -> 585 | I51: 621 | J51: 565
A52: 11 | B52: Team 11 | F52: 12 | G52: Team 12
B61: Total | C61: =SUM(C52:C60) -> 0 | D61: 0 | E61: 0 | G61: Total | H61: =SUM(H52:H60) -> 0 | I61: 0 | J61: 0
A62: 13 | B62: Team 13 | F62: 14 | G62: Team 14
B71: Total | C71: =SUM(C62:C70) -> 0 | D71: 0 | E71: 0 | G71: Total | H71: =SUM(H62:H70) -> 0 | I71: 0 | J71: 0
A72: 15 | B72: Team 15 | F72: 16 | G72: Team 16
B81: Total | C81: =SUM(C72:C80) -> 0 | D81: 0 | E81: 0 | G81: Total | H81: =SUM(H72:H80) -> 0 | I81: 0 | J81: 0
A82: 17 | B82: Team 17 | F82: 18 | G82: Team 18
B91: Total | C91: =SUM(C83:C90) -> 0 | D91: 0 | E91: 0 | G91: Total | H91: =SUM(H83:H90) -> 0 | I91: 0 | J91: 0

Sheet Boys Ind. High Game
A1: Name | B1: School | C1: Game 1 | D1: Game 2 | E1: Game 3 | F1: Series | G1: High Game
A2: ='Boys Reg'!G36 -> Elizjah Boone | B2: ='Boys Reg'!$G$32 -> Roselle | C2: ='Boys Reg'!H36 -> 163 | D2: ='Boys Reg'!I36 -> 267 | E2: ='Boys Reg'!J36 -> 202 | F2: =SUM(C2:E2) -> 632 | G2: =MAX(C2:E2) -> 267
A3: ='Boys Reg'!G6 -> Robbie Hughes | B3: ='Boys Reg'!$G$2 -> Ocean | C3: ='Boys Reg'!H6 -> 254 | D3: ='Boys Reg'!I6 -> 185 | E3: ='Boys Reg'!J6 -> 152 | F3: 591 | G3: 254
A4: ='Boys Reg'!G5 -> Michael DeGilio | B4: ='Boys Reg'!$G$2 -> Ocean | C4: ='Boys Reg'!H5 -> 207 | D4: ='Boys Reg'!I5 -> 184 | E4: ='Boys Reg'!J5 -> 221 | F4: 612 | G4: 221
A5: ='Boys Reg'!G35 -> Austin Torres | B5: ='Boys Reg'!$G$32 -> Roselle | C5: ='Boys Reg'!H35 -> 156 | D5: ='Boys Reg'!I35 -> 211 | E5: ='Boys Reg'!J35 -> 218 | F5: 585 | G5: 218
A6: ='Boys Reg'!G37 -> Luis Torres | B6: ='Boys Reg'!$G$32 -> Roselle | C6: ='Boys Reg'!H37 -> 193 | D6: ='Boys Reg'!I37 -> 172 | E6: ='Boys Reg'!J37 -> 217 | F6: 582 | G6: 217
A7: ='Boys Reg'!G15 -> Jamarion Wright | B7: ='Boys Reg'!$G$12 -> Bayonne | C7: ='Boys Reg'!H15 -> 151 | D7: ='Boys Reg'!I15 -> 216 | E7: ='Boys Reg'!J15 -> 179 | F7: 546 | G7: 216
A8: ='Boys Reg'!B27 -> Aaron Reingold | B8: ='Boys Reg'!$B$22 -> Matawan | C8: ='Boys Reg'!C27 -> 190 | D8: ='Boys Reg'!D27 -> 163 | E8: ='Boys Reg'!E27 -> 212 | F8: 565 | G8: 212
A9: ='Boys Reg'!B17 -> Chris DeSantis | B9: ='Boys Reg'!$B$12 -> Keansburg | C9: ='Boys Reg'!C17 -> 187 | D9: ='Boys Reg'!D17 -> 151 | E9: ='Boys Reg'!E17 -> 208 | F9: 546 | G9: 208
A10: ='Boys Reg'!G17 -> Matt Nilan | B10: ='Boys Reg'!$G$12 -> Bayonne | C10: ='Boys Reg'!H17 -> 182 | D10: ='Boys Reg'!I17 -> 204 | E10: ='Boys Reg'!J17 -> 183 | F10: 569 | G10: 204
A11: ='Boys Reg'!G3 -> Jack Henry | B11: ='Boys Reg'!$G$2 -> Ocean | C11: ='Boys Reg'!H3 -> 202 | D11: ='Boys Reg'!I3 -> 157 | E11: ='Boys Reg'!J3 -> 176 | F11: 535 | G11: 202
A12: ='Boys Reg'!B7 -> John Vitali | B12: ='Boys Reg'!$B$2 -> SJV | C12: ='Boys Reg'!C7 -> 147 | D12: ='Boys Reg'!D7 -> 192 | E12: ='Boys Reg'!E7 -> 202 | F12: 541 | G12: 202
A13: ='Boys Reg'!B13 -> Joe Sautner | B13: ='Boys Reg'!$B$12 -> Keansburg | C13: ='Boys Reg'!C13 -> 197 | D13: ='Boys Reg'!D13 -> 103 | E13: ='Boys Reg'!E13 -> 116 | F13: 416 | G13: 197
A14: ='Boys Reg'!B26 -> Lucan DiGregorio | B14: ='Boys Reg'!$B$22 -> Matawan | C14: ='Boys Reg'!C26 -> 193 | D14: ='Boys Reg'!D26 -> 146 | E14: ='Boys Reg'!E26 -> 160 | F14: 499 | G14: 193
A15: ='Boys Reg'!G4 -> Chris Munoz | B15: ='Boys Reg'!$G$2 -> Ocean | C15: ='Boys Reg'!H4 -> 190 | D15: ='Boys Reg'!I4 -> 126 | E15: ='Boys Reg'!J4 -> 147 | F15: 463 | G15: 190
A16: ='Boys Reg'!B6 -> Zach Schiavone | B16: ='Boys Reg'!$B$2 -> SJV | C16: ='Boys Reg'!C6 -> 162 | D16: ='Boys Reg'!D6 -> 115 | E16: ='Boys Reg'!E6 -> 183 | F16: 460 | G16: 183
A17: ='Boys Reg'!G23 -> Ralph D'Antonio | B17: ='Boys Reg'!$G$22 -> Henry Hudson | C17: ='Boys Reg'!H23 -> 154 | D17: ='Boys Reg'!I23 -> 123 | E17: ='Boys Reg'!J23 -> 180 | F17: 457 | G17: 180
A18: ='Boys Reg'!G26 -> Jack Loiacono | B18: ='Boys Reg'!$G$22 -> Henry Hudson | C18: ='Boys Reg'!H26 -> 158 | D18: ='Boys Reg'!I26 -> 179 | E18: ='Boys Reg'!J26 -> 175 | F18: 512 | G18: 179
A19: ='Boys Reg'!B23 -> Logan Grillo | B19: ='Boys Reg'!$B$22 -> Matawan | C19: ='Boys Reg'!C23 -> 144 | D19: ='Boys Reg'!D23 -> 128 | E19: ='Boys Reg'!E23 -> 173 | F19: 445 | G19: 173
A20: ='Boys Reg'!G47 -> William Mosan | B20: ='Boys Reg'!$G$42 -> Lakewood | C20: ='Boys Reg'!H47 -> 161 | D20: ='Boys Reg'!I47 -> 151 | E20: ='Boys Reg'!J47 -> 172 | F20: 484 | G20: 172
A21: ='Boys Reg'!G16 -> Jake Peregrin | B21: ='Boys Reg'!$G$12 -> Bayonne | C21: ='Boys Reg'!H16 -> 158 | D21: ='Boys Reg'!I16 -> 169 | E21: ='Boys Reg'!J16 -> 143 | F21: 470 | G21: 169
A22: ='Boys Reg'!B16 -> Brian Laskiewicz | B22: ='Boys Reg'!$B$12 -> Keansburg | C22: ='Boys Reg'!C16 -> 124 | D22: ='Boys Reg'!D16 -> 169 | E22: ='Boys Reg'!E16 -> 120 | F22: 413 | G22: 169
A23: ='Boys Reg'!B15 -> Kyle Scott | B23: ='Boys Reg'!$B$12 -> Keansburg | C23: ='Boys Reg'!C15 -> 104 | D23: ='Boys Reg'!D15 -> 137 | E23: ='Boys Reg'!E15 -> 169 | F23: 410 | G23: 169
A24: ='Boys Reg'!G27 -> Billy Miller | B24: ='Boys Reg'!$G$22 -> Henry Hudson | C24: ='Boys Reg'!H27 -> 119 | D24: ='Boys Reg'!I27 -> 137 | E24: ='Boys Reg'!J27 -> 169 | F24: 425 | G24: 169
A25: ='Boys Reg'!G14 -> Joe Novielli | B25: ='Boys Reg'!$G$12 -> Bayonne | C25: ='Boys Reg'!H14 -> 154 | D25: ='Boys Reg'!I14 -> 168 | E25: ='Boys Reg'!J14 -> 142 | F25: 464 | G25: 168
A26: ='Boys Reg'!G7 -> Jason Norris | B26: ='Boys Reg'!$G$2 -> Ocean | C26: ='Boys Reg'!H7 -> 151 | D26: ='Boys Reg'!I7 -> 168 | E26: ='Boys Reg'!J7 -> 131 | F26: 450 | G26: 168
A27: ='Boys Reg'!B5 -> George Anderson | B27: ='Boys Reg'!$B$2 -> SJV | C27: ='Boys Reg'!C5 -> 167 | D27: ='Boys Reg'!D5 -> 158 | E27: ='Boys Reg'!E5 -> 128 | F27: 453 | G27: 167
A28: ='Boys Reg'!G13 -> Efrain Gonzalez | B28: ='Boys Reg'!$G$12 -> Bayonne | C28: ='Boys Reg'!H13 -> 107 | D28: ='Boys Reg'!I13 -> 156 | E28: ='Boys Reg'!J13 -> 167 | F28: 430 | G28: 167
A29: ='Boys Reg'!G24 -> Jason Rockafellow | B29: ='Boys Reg'!$G$22 -> Henry Hudson | C29: ='Boys Reg'!H24 -> 110 | D29: ='Boys Reg'!I24 -> 158 | E29: ='Boys Reg'!J24 ->  | F29: 268 | G29: 158
A30: ='Boys Reg'!B45 -> Hanna Hale | B30: ='Boys Reg'!$B$42 -> Mater Dei | C30: ='Boys Reg'!C45 -> 156 | D30: ='Boys Reg'!D45 -> 135 | E30: ='Boys Reg'!E45 -> 129 | F30: 420 | G30: 156
A31: ='Boys Reg'!G34 -> Hector Rosa | B31: ='Boys Reg'!$G$32 -> Roselle | C31: ='Boys Reg'!H34 -> 152 | D31: ='Boys Reg'!I34 -> 108 | E31: ='Boys Reg'!J34 -> 133 | F31: 393 | G31: 152
A32: ='Boys Reg'!G43 -> Daniel Sanchez | B32: ='Boys Reg'!$G$42 -> Lakewood | C32: ='Boys Reg'!H43 -> 113 | D32: ='Boys Reg'!I43 -> 152 | E32: ='Boys Reg'!J43 -> 102 | F32: 367 | G32: 152
A33: ='Boys Reg'!B4 -> Matt Bruchez | B33: ='Boys Reg'!$B$2 -> SJV | C33: ='Boys Reg'!C4 -> 116 | D33: ='Boys Reg'!D4 -> 128 | E33: ='Boys Reg'!E4 -> 151 | F33: 395 | G33: 151
A34: ='Boys Reg'!B35 -> Resse Mehan | B34: ='Boys Reg'!$B$32 -> Keyport | C34: ='Boys Reg'!C35 -> 118 | D34: ='Boys Reg'!D35 -> 119 | E34: ='Boys Reg'!E35 -> 148 | F34: 385 | G34: 148
A35: ='Boys Reg'!G28 -> Nick Brown | B35: ='Boys Reg'!$G$22 -> Henry Hudson | C35: ='Boys Reg'!H28 ->  | D35: ='Boys Reg'!I28 -> 138 | E35: ='Boys Reg'!J28 -> 135 | F35: 273 | G35: 138
A36: ='Boys Reg'!B37 -> Jacen Shores | B36: ='Boys Reg'!$B$32 -> Keyport | C36: ='Boys Reg'!C37 -> 102 | D36: ='Boys Reg'!D37 -> 137 | E36: ='Boys Reg'!E37 -> 133 | F36: 372 | G36: 137
A37: ='Boys Reg'!G46 -> Edgar Perez | B37: ='Boys Reg'!$G$42 -> Lakewood | C37: ='Boys Reg'!H46 -> 115 | D37: ='Boys Reg'!I46 -> 131 | E37: ='Boys Reg'!J46 -> 109 | F37: 355 | G37: 131
A38: ='Boys Reg'!B14 -> Dominick Grasso | B38: ='Boys Reg'!$B$12 -> Keansburg | C38: ='Boys Reg'!C14 -> 128 | D38: ='Boys Reg'!D14 -> 126 | E38: ='Boys Reg'!E14 -> 110 | F38: 364 | G38: 128
A39: ='Boys Reg'!B47 -> Joey Stanton | B39: ='Boys Reg'!$B$42 -> Mater Dei | C39: ='Boys Reg'!C47 -> 95 | D39: ='Boys Reg'!D47 -> 125 | E39: ='Boys Reg'!E47 -> 101 | F39: 321 | G39: 125
A40: ='Boys Reg'!G33 -> ZiAyre Chevailer | B40: ='Boys Reg'!$G$32 -> Roselle | C40: ='Boys Reg'!H33 -> 124 | D40: ='Boys Reg'!I33 -> 113 | E40: ='Boys Reg'!J33 -> 102 | F40: 339 | G40: 124
A41: ='Boys Reg'!G29 -> Matt Crossan | B41: ='Boys Reg'!$G$22 -> Henry Hudson | C41: ='Boys Reg'!H29 ->  | D41: ='Boys Reg'!I29 ->  | E41: ='Boys Reg'!J29 -> 124 | F41: 124 | G41: 124
A42: ='Boys Reg'!B3 -> Chris Moran | B42: ='Boys Reg'!$B$2 -> SJV | C42: ='Boys Reg'!C3 -> 113 | D42: ='Boys Reg'!D3 -> 123 | E42: ='Boys Reg'!E3 ->  | F42: 236 | G42: 123
A43: ='Boys Reg'!B44 -> Paris Merse | B43: ='Boys Reg'!$B$42 -> Mater Dei | C43: ='Boys Reg'!C44 -> 95 | D43: ='Boys Reg'!D44 -> 113 | E43: ='Boys Reg'!E44 -> 123 | F43: 331 | G43: 123
A44: ='Boys Reg'!B36 -> Josh Vazquez | B44: ='Boys Reg'!$B$32 -> Keyport | C44: ='Boys Reg'!C36 -> 111 | D44: ='Boys Reg'!D36 -> 122 | E44: ='Boys Reg'!E36 -> 109 | F44: 342 | G44: 122
A45: ='Boys Reg'!B43 -> Alphonse Vota | B45: ='Boys Reg'!$B$42 -> Mater Dei | C45: ='Boys Reg'!C43 -> 77 | D45: ='Boys Reg'!D43 -> 116 | E45: ='Boys Reg'!E43 -> 120 | F45: 313 | G45: 120
A46: ='Boys Reg'!B34 -> Christian Oldhafer | B46: ='Boys Reg'!$B$32 -> Keyport | C46: ='Boys Reg'!C34 -> 116 | D46: ='Boys Reg'!D34 -> 95 | E46: ='Boys Reg'!E34 -> 78 | F46: 289 | G46: 116
A47: ='Boys Reg'!G48 -> Charles Kopcho | B47: ='Boys Reg'!$G$42 -> Lakewood | C47: ='Boys Reg'!H48 ->  | D47: ='Boys Reg'!I48 -> 112 | E47: ='Boys Reg'!J48 -> 89 | F47: 201 | G47: 112
A48: ='Boys Reg'!G45 -> Kevin Cosme | B48: ='Boys Reg'!$G$42 -> Lakewood | C48: ='Boys Reg'!H45 -> 111 | D48: ='Boys Reg'!I45 -> 75 | E48: ='Boys Reg'!J45 ->  | F48: 186 | G48: 111
A49: ='Boys Reg'!B24 -> Matt Lalor | B49: ='Boys Reg'!$B$22 -> Matawan | C49: ='Boys Reg'!C24 -> 111 | D49: ='Boys Reg'!D24 ->  | E49: ='Boys Reg'!E24 -> 95 | F49: 206 | G49: 111
A50: ='Boys Reg'!B46 -> Chris Pfirrman | B50: ='Boys Reg'!$B$42 -> Mater Dei | C50: ='Boys Reg'!C46 -> 98 | D50: ='Boys Reg'!D46 -> 107 | E50: ='Boys Reg'!E46 -> 111 | F50: 316 | G50: 111
A51: ='Boys Reg'!B28 -> Noah Ali | B51: ='Boys Reg'!$B$22 -> Matawan | C51: ='Boys Reg'!C28 ->  | D51: ='Boys Reg'!D28 -> 105 | E51: ='Boys Reg'!E28 -> 70 | F51: 175 | G51: 105
A52: ='Boys Reg'!B29 -> James Orleman | B52: ='Boys Reg'!$B$22 -> Matawan | C52: ='Boys Reg'!C29 ->  | D52: ='Boys Reg'!D29 -> 100 | E52: ='Boys Reg'!E29 ->  | F52: 100 | G52: 100
A53: ='Boys Reg'!G44 -> Marro Rojas | B53: ='Boys Reg'!$G$42 -> Lakewood | C53: ='Boys Reg'!H44 -> 85 | D53: ='Boys Reg'!I44 ->  | E53: ='Boys Reg'!J44 -> 93 | F53: 178 | G53: 93
A54: ='Boys Reg'!G25 -> Chris Saunders | B54: ='Boys Reg'!$G$22 -> Henry Hudson | C54: ='Boys Reg'!H25 -> 89 | D54: ='Boys Reg'!I25 ->  | E54: ='Boys Reg'!J25 ->  | F54: 89 | G54: 89
A55: ='Boys Reg'!B33 -> Michael Graham | B55: ='Boys Reg'!$B$32 -> Keyport | C55: ='Boys Reg'!C33 -> 85 | D55: ='Boys Reg'!D33 -> 88 | E55: ='Boys Reg'!E33 -> 78 | F55: 251 | G55: 88
A56: ='Boys Reg'!B25 -> Ethan Liranzo | B56: ='Boys Reg'!$B$22 -> Matawan | C56: ='Boys Reg'!C25 -> 84 | D56: ='Boys Reg'!D25 ->  | E56: ='Boys Reg'!E25 ->  | F56: 84 | G56: 84
A57: ='Boys Reg'!B8 -> Conor O'Grady | B57: ='Boys Reg'!$B$2 -> SJV | C57: ='Boys Reg'!C8 ->  | D57: ='Boys Reg'!D8 ->  | E57: ='Boys Reg'!E8 -> 76 | F57: 76 | G57: 76
A58: ='Boys Reg'!B57 ->  | B58: ='Boys Reg'!$B$52 -> Team 11 | C58: ='Boys Reg'!C57 ->  | D58: ='Boys Reg'!D57 ->  | E58: ='Boys Reg'!E57 ->  | F58: 0 | G58: 0
A59: ='Boys Reg'!B67 ->  | B59: ='Boys Reg'!$B$62 -> Team 13 | C59: ='Boys Reg'!C67 ->  | D59: ='Boys Reg'!D67 ->  | E59: ='Boys Reg'!E67 ->  | F59: 0 | G59: 0
A60: ='Boys Reg'!B63 ->  | B60: ='Boys Reg'!$B$62 -> Team 13 | C60: ='Boys Reg'!C63 ->  | D60: ='Boys Reg'!D63 ->  | E60: ='Boys Reg'!E63 ->  | F60: 0 | G60: 0
A61: ='Boys Reg'!B65 ->  | B61: ='Boys Reg'!$B$62 -> Team 13 | C61: ='Boys Reg'!C65 ->  | D61: ='Boys Reg'!D65 ->  | E61: ='Boys Reg'!E65 ->  | F61: 0 | G61: 0
A62: ='Boys Reg'!B55 ->  | B62: ='Boys Reg'!$B$52 -> Team 11 | C62: ='Boys Reg'!C55 ->  | D62: ='Boys Reg'!D55 ->  | E62: ='Boys Reg'!E55 ->  | F62: 0 | G62: 0
A63: ='Boys Reg'!B66 ->  | B63: ='Boys Reg'!$B$62 -> Team 13 | C63: ='Boys Reg'!C66 ->  | D63: ='Boys Reg'!D66 ->  | E63: ='Boys Reg'!E66 ->  | F63: 0 | G63: 0
A64: ='Boys Reg'!B56 ->  | B64: ='Boys Reg'!$B$52 -> Team 11 | C64: ='Boys Reg'!C56 ->  | D64: ='Boys Reg'!D56 ->  | E64: ='Boys Reg'!E56 ->  | F64: 0 | G64: 0
A65: ='Boys Reg'!B64 ->  | B65: ='Boys Reg'!$B$62 -> Team 13 | C65: ='Boys Reg'!C64 ->  | D65: ='Boys Reg'!D64 ->  | E65: ='Boys Reg'!E64 ->  | F65: 0 | G65: 0
A66: ='Boys Reg'!G57 ->  | B66: ='Boys Reg'!$G$52 -> Team 12 | C66: ='Boys Reg'!H57 ->  | D66: ='Boys Reg'!I57 ->  | E66: ='Boys Reg'!J57 ->  | F66: 0 | G66: 0
A67: ='Boys Reg'!B9 ->  | B67: ='Boys Reg'!$B$2 -> SJV | C67: ='Boys Reg'!C9 ->  | D67: ='Boys Reg'!D9 ->  | E67: ='Boys Reg'!E9 ->  | F67: 0 | G67: 0
A68: ='Boys Reg'!G56 ->  | B68: ='Boys Reg'!$G$52 -> Team 12 | C68: ='Boys Reg'!H56 ->  | D68: ='Boys Reg'!I56 ->  | E68: ='Boys Reg'!J56 ->  | F68: 0 | G68: 0
A69: ='Boys Reg'!B54 ->  | B69: ='Boys Reg'!$B$52 -> Team 11 | C69: ='Boys Reg'!C54 ->  | D69: ='Boys Reg'!D54 ->  | E69: ='Boys Reg'!E54 ->  | F69: 0 | G69: 0
A70: ='Boys Reg'!G53 ->  | B70: ='Boys Reg'!$G$52 -> Team 12 | C70: ='Boys Reg'!H53 ->  | D70: ='Boys Reg'!I53 ->  | E70: ='Boys Reg'!J53 ->  | F70: 0 | G70: 0
A71: ='Boys Reg'!G55 ->  | B71: ='Boys Reg'!$G$52 -> Team 12 | C71: ='Boys Reg'!H55 ->  | D71: ='Boys Reg'!I55 ->  | E71: ='Boys Reg'!J55 ->  | F71: 0 | G71: 0
A72: ='Boys Reg'!B53 ->  | B72: ='Boys Reg'!$B$52 -> Team 11 | C72: ='Boys Reg'!C53 ->  | D72: ='Boys Reg'!D53 ->  | E72: ='Boys Reg'!E53 ->  | F72: 0 | G72: 0
A73: ='Boys Reg'!G19 ->  | B73: ='Boys Reg'!$G$12 -> Bayonne | C73: ='Boys Reg'!H19 ->  | D73: ='Boys Reg'!I19 ->  | E73: ='Boys Reg'!J19 ->  | F73: 0 | G73: 0
A74: ='Boys Reg'!G18 ->  | B74: ='Boys Reg'!$G$12 -> Bayonne | C74: ='Boys Reg'!H18 ->  | D74: ='Boys Reg'!I18 ->  | E74: ='Boys Reg'!J18 ->  | F74: 0 | G74: 0
A75: ='Boys Reg'!B68 ->  | B75: ='Boys Reg'!$B$62 -> Team 13 | C75: ='Boys Reg'!C68 ->  | D75: ='Boys Reg'!D68 ->  | E75: ='Boys Reg'!E68 ->  | F75: 0 | G75: 0
A76: ='Boys Reg'!B69 ->  | B76: ='Boys Reg'!$B$62 -> Team 13 | C76: ='Boys Reg'!C69 ->  | D76: ='Boys Reg'!D69 ->  | E76: ='Boys Reg'!E69 ->  | F76: 0 | G76: 0
A77: ='Boys Reg'!B70 ->  | B77: ='Boys Reg'!$B$62 -> Team 13 | C77: ='Boys Reg'!C70 ->  | D77: ='Boys Reg'!D70 ->  | E77: ='Boys Reg'!E70 ->  | F77: 0 | G77: 0
A78: ='Boys Reg'!G54 ->  | B78: ='Boys Reg'!$G$52 -> Team 12 | C78: ='Boys Reg'!H54 ->  | D78: ='Boys Reg'!I54 ->  | E78: ='Boys Reg'!J54 ->  | F78: 0 | G78: 0
A79: ='Boys Reg'!G58 ->  | B79: ='Boys Reg'!$G$52 -> Team 12 | C79: ='Boys Reg'!H58 ->  | D79: ='Boys Reg'!I58 ->  | E79: ='Boys Reg'!J58 ->  | F79: 0 | G79: 0
A80: ='Boys Reg'!G59 ->  | B80: ='Boys Reg'!$G$52 -> Team 12 | C80: ='Boys Reg'!H59 ->  | D80: ='Boys Reg'!I59 ->  | E80: ='Boys Reg'!J59 ->  | F80: 0 | G80: 0
A81: ='Boys Reg'!G60 ->  | B81: ='Boys Reg'!$G$52 -> Team 12 | C81: ='Boys Reg'!H60 ->  | D81: ='Boys Reg'!I60 ->  | E81: ='Boys Reg'!J60 ->  | F81: 0 | G81: 0
A82: ='Boys Reg'!G49 -> Sergio Vargas | B82: ='Boys Reg'!$G$42 -> Lakewood | C82: ='Boys Reg'!H49 ->  | D82: ='Boys Reg'!I49 ->  | E82: ='Boys Reg'!J49 ->  | F82: 0 | G82: 0
A83: ='Boys Reg'!G50 -> Carlos Palafox | B83: ='Boys Reg'!$G$42 -> Lakewood | C83: ='Boys Reg'!H50 ->  | D83: ='Boys Reg'!I50 ->  | E83: ='Boys Reg'!J50 ->  | F83: 0 | G83: 0
A84: ='Boys Reg'!B48 ->  | B84: ='Boys Reg'!$B$42 -> Mater Dei | C84: ='Boys Reg'!C48 ->  | D84: ='Boys Reg'!D48 ->  | E84: ='Boys Reg'!E48 ->  | F84: 0 | G84: 0
A85: ='Boys Reg'!B49 ->  | B85: ='Boys Reg'!$B$42 -> Mater Dei | C85: ='Boys Reg'!C49 ->  | D85: ='Boys Reg'!D49 ->  | E85: ='Boys Reg'!E49 ->  | F85: 0 | G85: 0
A86: ='Boys Reg'!B50 ->  | B86: ='Boys Reg'!$B$42 -> Mater Dei | C86: ='Boys Reg'!C50 ->  | D86: ='Boys Reg'!D50 ->  | E86: ='Boys Reg'!E50 ->  | F86: 0 | G86: 0
A87: ='Boys Reg'!G38 -> James Luna Vazquez | B87: ='Boys Reg'!$G$32 -> Roselle | C87: ='Boys Reg'!H38 ->  | D87: ='Boys Reg'!I38 ->  | E87: ='Boys Reg'!J38 ->  | F87: 0 | G87: 0
A88: ='Boys Reg'!G39 ->  | B88: ='Boys Reg'!$G$32 -> Roselle | C88: ='Boys Reg'!H39 ->  | D88: ='Boys Reg'!I39 ->  | E88: ='Boys Reg'!J39 ->  | F88: 0 | G88: 0
A89: ='Boys Reg'!G40 ->  | B89: ='Boys Reg'!$G$32 -> Roselle | C89: ='Boys Reg'!H40 ->  | D89: ='Boys Reg'!I40 ->  | E89: ='Boys Reg'!J40 ->  | F89: 0 | G89: 0
A90: ='Boys Reg'!B38 -> Hunter Yale | B90: ='Boys Reg'!$B$32 -> Keyport | C90: ='Boys Reg'!C38 ->  | D90: ='Boys Reg'!D38 ->  | E90: ='Boys Reg'!E38 ->  | F90: 0 | G90: 0
A91: ='Boys Reg'!B39 -> Jake Staeger | B91: ='Boys Reg'!$B$32 -> Keyport | C91: ='Boys Reg'!C39 ->  | D91: ='Boys Reg'!D39 ->  | E91: ='Boys Reg'!E39 ->  | F91: 0 | G91: 0
A92: ='Boys Reg'!B40 -> Nick Royle | B92: ='Boys Reg'!$B$32 -> Keyport | C92: ='Boys Reg'!C40 ->  | D92: ='Boys Reg'!D40 ->  | E92: ='Boys Reg'!E40 ->  | F92: 0 | G92: 0
A93: ='Boys Reg'!G30 ->  | B93: ='Boys Reg'!$G$22 -> Henry Hudson | C93: ='Boys Reg'!H30 ->  | D93: ='Boys Reg'!I30 ->  | E93: ='Boys Reg'!J30 ->  | F93: 0 | G93: 0
A94: ='Boys Reg'!B30 ->  | B94: ='Boys Reg'!$B$22 -> Matawan | C94: ='Boys Reg'!C30 ->  | D94: ='Boys Reg'!D30 ->  | E94: ='Boys Reg'!E30 ->  | F94: 0 | G94: 0
A95: ='Boys Reg'!G20 ->  | B95: ='Boys Reg'!$G$12 -> Bayonne | C95: ='Boys Reg'!H20 ->  | D95: ='Boys Reg'!I20 ->  | E95: ='Boys Reg'!J20 ->  | F95: 0 | G95: 0
A96: ='Boys Reg'!B18 ->  | B96: ='Boys Reg'!$B$12 -> Keansburg | C96: ='Boys Reg'!C18 ->  | D96: ='Boys Reg'!D18 ->  | E96: ='Boys Reg'!E18 ->  | F96: 0 | G96: 0
A97: ='Boys Reg'!B19 ->  | B97: ='Boys Reg'!$B$12 -> Keansburg | C97: ='Boys Reg'!C19 ->  | D97: ='Boys Reg'!D19 ->  | E97: ='Boys Reg'!E19 ->  | F97: 0 | G97: 0
A98: ='Boys Reg'!B20 ->  | B98: ='Boys Reg'!$B$12 -> Keansburg | C98: ='Boys Reg'!C20 ->  | D98: ='Boys Reg'!D20 ->  | E98: ='Boys Reg'!E20 ->  | F98: 0 | G98: 0
A99: ='Boys Reg'!G8 -> Kevin Reyes | B99: ='Boys Reg'!$G$2 -> Ocean | C99: ='Boys Reg'!H8 ->  | D99: ='Boys Reg'!I8 ->  | E99: ='Boys Reg'!J8 ->  | F99: 0 | G99: 0
A100: ='Boys Reg'!G9 -> Nicholas Foy | B100: ='Boys Reg'!$G$2 -> Ocean | C100: ='Boys Reg'!H9 ->  | D100: ='Boys Reg'!I9 ->  | E100: ='Boys Reg'!J9 ->  | F100: 0 | G100: 0
A101: ='Boys Reg'!G10 ->  | B101: ='Boys Reg'!$G$2 -> Ocean | C101: ='Boys Reg'!H10 ->  | D101: ='Boys Reg'!I10 ->  | E101: ='Boys Reg'!J10 ->  | F101: 0 | G101: 0
A102: ='Boys Reg'!B10 ->  | B102: ='Boys Reg'!$B$2 -> SJV | C102: ='Boys Reg'!C10 ->  | D102: ='Boys Reg'!D10 ->  | E102: ='Boys Reg'!E10 ->  | F102: 0 | G102: 0
A103: ='Boys Reg'!B58 ->  | B103: ='Boys Reg'!$B$52 -> Team 11 | C103: ='Boys Reg'!C58 ->  | D103: ='Boys Reg'!D58 ->  | E103: ='Boys Reg'!E58 ->  | F103: 0 | G103: 0
A104: ='Boys Reg'!B59 ->  | B104: ='Boys Reg'!$B$52 -> Team 11 | C104: ='Boys Reg'!C59 ->  | D104: ='Boys Reg'!D59 ->  | E104: ='Boys Reg'!E59 ->  | F104: 0 | G104: 0
A105: ='Boys Reg'!B60 ->  | B105: ='Boys Reg'!$B$52 -> Team 11 | C105: ='Boys Reg'!C60 ->  | D105: ='Boys Reg'!D60 ->  | E105: ='Boys Reg'!E60 ->  | F105: 0 | G105: 0
A106: ='Boys Reg'!G74 ->  | B106: ='Boys Reg'!$G$72 -> Team 16 | C106: ='Boys Reg'!H74 ->  | D106: ='Boys Reg'!I74 ->  | E106: ='Boys Reg'!J74 ->  | F106: 0 | G106: 0
A107: ='Boys Reg'!G73 ->  | B107: ='Boys Reg'!$G$72 -> Team 16 | C107: ='Boys Reg'!H73 ->  | D107: ='Boys Reg'!I73 ->  | E107: ='Boys Reg'!J73 ->  | F107: 0 | G107: 0
A108: ='Boys Reg'!B87 ->  | B108: ='Boys Reg'!$B$82 -> Team 17 | C108: ='Boys Reg'!C87 ->  | D108: ='Boys Reg'!D87 ->  | E108: ='Boys Reg'!E87 ->  | F108: 0 | G108: 0
A109: ='Boys Reg'!B83 ->  | B109: ='Boys Reg'!$B$82 -> Team 17 | C109: ='Boys Reg'!C83 ->  | D109: ='Boys Reg'!D83 ->  | E109: ='Boys Reg'!E83 ->  | F109: 0 | G109: 0
A110: ='Boys Reg'!B85 ->  | B110: ='Boys Reg'!$B$82 -> Team 17 | C110: ='Boys Reg'!C85 ->  | D110: ='Boys Reg'!D85 ->  | E110: ='Boys Reg'!E85 ->  | F110: 0 | G110: 0
A111: ='Boys Reg'!B84 ->  | B111: ='Boys Reg'!$B$82 -> Team 17 | C111: ='Boys Reg'!C84 ->  | D111: ='Boys Reg'!D84 ->  | E111: ='Boys Reg'!E84 ->  | F111: 0 | G111: 0
A112: ='Boys Reg'!G76 ->  | B112: ='Boys Reg'!$G$72 -> Team 16 | C112: ='Boys Reg'!H76 ->  | D112: ='Boys Reg'!I76 ->  | E112: ='Boys Reg'!J76 ->  | F112: 0 | G112: 0
A113: ='Boys Reg'!G67 ->  | B113: ='Boys Reg'!$G$62 -> Team 14 | C113: ='Boys Reg'!H67 ->  | D113: ='Boys Reg'!I67 ->  | E113: ='Boys Reg'!J67 ->  | F113: 0 | G113: 0
A114: ='Boys Reg'!B86 ->  | B114: ='Boys Reg'!$B$82 -> Team 17 | C114: ='Boys Reg'!C86 ->  | D114: ='Boys Reg'!D86 ->  | E114: ='Boys Reg'!E86 ->  | F114: 0 | G114: 0
A115: ='Boys Reg'!G87 ->  | B115: ='Boys Reg'!$G$82 -> Team 18 | C115: ='Boys Reg'!H87 ->  | D115: ='Boys Reg'!I87 ->  | E115: ='Boys Reg'!J87 ->  | F115: 0 | G115: 0
A116: ='Boys Reg'!G75 ->  | B116: ='Boys Reg'!$G$72 -> Team 16 | C116: ='Boys Reg'!H75 ->  | D116: ='Boys Reg'!I75 ->  | E116: ='Boys Reg'!J75 ->  | F116: 0 | G116: 0
A117: ='Boys Reg'!B76 ->  | B117: ='Boys Reg'!$B$72 -> Team 15 | C117: ='Boys Reg'!C76 ->  | D117: ='Boys Reg'!D76 ->  | E117: ='Boys Reg'!E76 ->  | F117: 0 | G117: 0
A118: ='Boys Reg'!B73 ->  | B118: ='Boys Reg'!$B$72 -> Team 15 | C118: ='Boys Reg'!C73 ->  | D118: ='Boys Reg'!D73 ->  | E118: ='Boys Reg'!E73 ->  | F118: 0 | G118: 0
A119: ='Boys Reg'!G77 ->  | B119: ='Boys Reg'!$G$72 -> Team 16 | C119: ='Boys Reg'!H77 ->  | D119: ='Boys Reg'!I77 ->  | E119: ='Boys Reg'!J77 ->  | F119: 0 | G119: 0
A120: ='Boys Reg'!B77 ->  | B120: ='Boys Reg'!$B$72 -> Team 15 | C120: ='Boys Reg'!C77 ->  | D120: ='Boys Reg'!D77 ->  | E120: ='Boys Reg'!E77 ->  | F120: 0 | G120: 0
A121: ='Boys Reg'!G85 ->  | B121: ='Boys Reg'!$G$82 -> Team 18 | C121: ='Boys Reg'!H85 ->  | D121: ='Boys Reg'!I85 ->  | E121: ='Boys Reg'!J85 ->  | F121: 0 | G121: 0
A122: ='Boys Reg'!B75 ->  | B122: ='Boys Reg'!$B$72 -> Team 15 | C122: ='Boys Reg'!C75 ->  | D122: ='Boys Reg'!D75 ->  | E122: ='Boys Reg'!E75 ->  | F122: 0 | G122: 0
A123: ='Boys Reg'!G83 ->  | B123: ='Boys Reg'!$G$82 -> Team 18 | C123: ='Boys Reg'!H83 ->  | D123: ='Boys Reg'!I83 ->  | E123: ='Boys Reg'!J83 ->  | F123: 0 | G123: 0
A124: ='Boys Reg'!G86 ->  | B124: ='Boys Reg'!$G$82 -> Team 18 | C124: ='Boys Reg'!H86 ->  | D124: ='Boys Reg'!I86 ->  | E124: ='Boys Reg'!J86 ->  | F124: 0 | G124: 0
A125: ='Boys Reg'!G66 ->  | B125: ='Boys Reg'!$G$62 -> Team 14 | C125: ='Boys Reg'!H66 ->  | D125: ='Boys Reg'!I66 ->  | E125: ='Boys Reg'!J66 ->  | F125: 0 | G125: 0
A126: ='Boys Reg'!G84 ->  | B126: ='Boys Reg'!$G$82 -> Team 18 | C126: ='Boys Reg'!H84 ->  | D126: ='Boys Reg'!I84 ->  | E126: ='Boys Reg'!J84 ->  | F126: 0 | G126: 0
A127: ='Boys Reg'!G64 ->  | B127: ='Boys Reg'!$G$62 -> Team 14 | C127: ='Boys Reg'!H64 ->  | D127: ='Boys Reg'!I64 ->  | E127: ='Boys Reg'!J64 ->  | F127: 0 | G127: 0
A128: ='Boys Reg'!G63 ->  | B128: ='Boys Reg'!$G$62 -> Team 14 | C128: ='Boys Reg'!H63 ->  | D128: ='Boys Reg'!I63 ->  | E128: ='Boys Reg'!J63 ->  | F128: 0 | G128: 0
A129: ='Boys Reg'!G68 ->  | B129: ='Boys Reg'!$G$62 -> Team 14 | C129: ='Boys Reg'!H68 ->  | D129: ='Boys Reg'!I68 ->  | E129: ='Boys Reg'!J68 ->  | F129: 0 | G129: 0
A130: ='Boys Reg'!G69 ->  | B130: ='Boys Reg'!$G$62 -> Team 14 | C130: ='Boys Reg'!H69 ->  | D130: ='Boys Reg'!I69 ->  | E130: ='Boys Reg'!J69 ->  | F130: 0 | G130: 0
A131: ='Boys Reg'!B78 ->  | B131: ='Boys Reg'!$B$72 -> Team 15 | C131: ='Boys Reg'!C78 ->  | D131: ='Boys Reg'!D78 ->  | E131: ='Boys Reg'!E78 ->  | F131: 0 | G131: 0
A132: ='Boys Reg'!B74 ->  | B132: ='Boys Reg'!$B$72 -> Team 15 | C132: ='Boys Reg'!C74 ->  | D132: ='Boys Reg'!D74 ->  | E132: ='Boys Reg'!E74 ->  | F132: 0 | G132: 0
A133: ='Boys Reg'!G65 ->  | B133: ='Boys Reg'!$G$62 -> Team 14 | C133: ='Boys Reg'!H65 ->  | D133: ='Boys Reg'!I65 ->  | E133: ='Boys Reg'!J65 ->  | F133: 0 | G133: 0
A134: ='Boys Reg'!G70 ->  | B134: ='Boys Reg'!$G$62 -> Team 14 | C134: ='Boys Reg'!H70 ->  | D134: ='Boys Reg'!I70 ->  | E134: ='Boys Reg'!J70 ->  | F134: 0 | G134: 0
A135: ='Boys Reg'!B79 ->  | B135: ='Boys Reg'!$B$72 -> Team 15 | C135: ='Boys Reg'!C79 ->  | D135: ='Boys Reg'!D79 ->  | E135: ='Boys Reg'!E79 ->  | F135: 0 | G135: 0
A136: ='Boys Reg'!B80 ->  | B136: ='Boys Reg'!$B$72 -> Team 15 | C136: ='Boys Reg'!C80 ->  | D136: ='Boys Reg'!D80 ->  | E136: ='Boys Reg'!E80 ->  | F136: 0 | G136: 0
A137: ='Boys Reg'!G78 ->  | B137: ='Boys Reg'!$G$72 -> Team 16 | C137: ='Boys Reg'!H78 ->  | D137: ='Boys Reg'!I78 ->  | E137: ='Boys Reg'!J78 ->  | F137: 0 | G137: 0
A138: ='Boys Reg'!G79 ->  | B138: ='Boys Reg'!$G$72 -> Team 16 | C138: ='Boys Reg'!H79 ->  | D138: ='Boys Reg'!I79 ->  | E138: ='Boys Reg'!J79 ->  | F138: 0 | G138: 0
A139: ='Boys Reg'!G80 ->  | B139: ='Boys Reg'!$G$72 -> Team 16 | C139: ='Boys Reg'!H80 ->  | D139: ='Boys Reg'!I80 ->  | E139: ='Boys Reg'!J80 ->  | F139: 0 | G139: 0
A140: ='Boys Reg'!B88 ->  | B140: ='Boys Reg'!$B$82 -> Team 17 | C140: ='Boys Reg'!C88 ->  | D140: ='Boys Reg'!D88 ->  | E140: ='Boys Reg'!E88 ->  | F140: 0 | G140: 0
A141: ='Boys Reg'!B89 ->  | B141: ='Boys Reg'!$B$82 -> Team 17 | C141: ='Boys Reg'!C89 ->  | D141: ='Boys Reg'!D89 ->  | E141: ='Boys Reg'!E89 ->  | F141: 0 | G141: 0
A142: ='Boys Reg'!B90 ->  | B142: ='Boys Reg'!$B$82 -> Team 17 | C142: ='Boys Reg'!C90 ->  | D142: ='Boys Reg'!D90 ->  | E142: ='Boys Reg'!E90 ->  | F142: 0 | G142: 0
A143: ='Boys Reg'!G88 ->  | B143: ='Boys Reg'!$G$82 -> Team 18 | C143: ='Boys Reg'!H88 ->  | D143: ='Boys Reg'!I88 ->  | E143: ='Boys Reg'!J88 ->  | F143: 0 | G143: 0
A144: ='Boys Reg'!G89 ->  | B144: ='Boys Reg'!$G$82 -> Team 18 | C144: ='Boys Reg'!H89 ->  | D144: ='Boys Reg'!I89 ->  | E144: ='Boys Reg'!J89 ->  | F144: 0 | G144: 0
A145: ='Boys Reg'!G90 ->  | B145: ='Boys Reg'!$G$82 -> Team 18 | C145: ='Boys Reg'!H90 ->  | D145: ='Boys Reg'!I90 ->  | E145: ='Boys Reg'!J90 ->  | F145: 0 | G145: 0

Sheet Boys Ind. High Series
A1: Name | B1: School | C1: Game 1 | D1: Game 2 | E1: Game 3 | F1: Series | G1: High Game
A2: ='Boys Reg'!G36 -> Elizjah Boone | B2: ='Boys Reg'!$G$32 -> Roselle | C2: ='Boys Reg'!H36 -> 163 | D2: ='Boys Reg'!I36 -> 267 | E2: ='Boys Reg'!J36 -> 202 | F2: =SUM(C2:E2) -> 632 | G2: =MAX(C2:E2) -> 267
A3: ='Boys Reg'!G5 -> Michael DeGilio | B3: ='Boys Reg'!$G$2 -> Ocean | C3: ='Boys Reg'!H5 -> 207 | D3: ='Boys Reg'!I5 -> 184 | E3: ='Boys Reg'!J5 -> 221 | F3: 612 | G3: 221
A4: ='Boys Reg'!G6 -> Robbie Hughes | B4: ='Boys Reg'!$G$2 -> Ocean | C4: ='Boys Reg'!H6 -> 254 | D4: ='Boys Reg'!I6 -> 185 | E4: ='Boys Reg'!J6 -> 152 | F4: 591 | G4: 254
A5: ='Boys Reg'!G35 -> Austin Torres | B5: ='Boys Reg'!$G$32 -> Roselle | C5: ='Boys Reg'!H35 -> 156 | D5: ='Boys Reg'!I35 -> 211 | E5: ='Boys Reg'!J35 -> 218 | F5: 585 | G5: 218
A6: ='Boys Reg'!G37 -> Luis Torres | B6: ='Boys Reg'!$G$32 -> Roselle | C6: ='Boys Reg'!H37 -> 193 | D6: ='Boys Reg'!I37 -> 172 | E6: ='Boys Reg'!J37 -> 217 | F6: 582 | G6: 217
A7: ='Boys Reg'!G17 -> Matt Nilan | B7: ='Boys Reg'!$G$12 -> Bayonne | C7: ='Boys Reg'!H17 -> 182 | D7: ='Boys Reg'!I17 -> 204 | E7: ='Boys Reg'!J17 -> 183 | F7: 569 | G7: 204
A8: ='Boys Reg'!B27 -> Aaron Reingold | B8: ='Boys Reg'!$B$22 -> Matawan | C8: ='Boys Reg'!C27 -> 190 | D8: ='Boys Reg'!D27 -> 163 | E8: ='Boys Reg'!E27 -> 212 | F8: 565 | G8: 212
A9: ='Boys Reg'!G15 -> Jamarion Wright | B9: ='Boys Reg'!$G$12 -> Bayonne | C9: ='Boys Reg'!H15 -> 151 | D9: ='Boys Reg'!I15 -> 216 | E9: ='Boys Reg'!J15 -> 179 | F9: 546 | G9: 216
A10: ='Boys Reg'!B17 -> Chris DeSantis | B10: ='Boys Reg'!$B$12 -> Keansburg | C10: ='Boys Reg'!C17 -> 187 | D10: ='Boys Reg'!D17 -> 151 | E10: ='Boys Reg'!E17 -> 208 | F10: 546 | G10: 208
A11: ='Boys Reg'!B7 -> John Vitali | B11: ='Boys Reg'!$B$2 -> SJV | C11: ='Boys Reg'!C7 -> 147 | D11: ='Boys Reg'!D7 -> 192 | E11: ='Boys Reg'!E7 -> 202 | F11: 541 | G11: 202
A12: ='Boys Reg'!G3 -> Jack Henry | B12: ='Boys Reg'!$G$2 -> Ocean | C12: ='Boys Reg'!H3 -> 202 | D12: ='Boys Reg'!I3 -> 157 | E12: ='Boys Reg'!J3 -> 176 | F12: 535 | G12: 202
A13: ='Boys Reg'!G26 -> Jack Loiacono | B13: ='Boys Reg'!$G$22 -> Henry Hudson | C13: ='Boys Reg'!H26 -> 158 | D13: ='Boys Reg'!I26 -> 179 | E13: ='Boys Reg'!J26 -> 175 | F13: 512 | G13: 179
A14: ='Boys Reg'!B26 -> Lucan DiGregorio | B14: ='Boys Reg'!$B$22 -> Matawan | C14: ='Boys Reg'!C26 -> 193 | D14: ='Boys Reg'!D26 -> 146 | E14: ='Boys Reg'!E26 -> 160 | F14: 499 | G14: 193
A15: ='Boys Reg'!G47 -> William Mosan | B15: ='Boys Reg'!$G$42 -> Lakewood | C15: ='Boys Reg'!H47 -> 161 | D15: ='Boys Reg'!I47 -> 151 | E15: ='Boys Reg'!J47 -> 172 | F15: 484 | G15: 172
A16: ='Boys Reg'!G16 -> Jake Peregrin | B16: ='Boys Reg'!$G$12 -> Bayonne | C16: ='Boys Reg'!H16 -> 158 | D16: ='Boys Reg'!I16 -> 169 | E16: ='Boys Reg'!J16 -> 143 | F16: 470 | G16: 169
A17: ='Boys Reg'!G14 -> Joe Novielli | B17: ='Boys Reg'!$G$12 -> Bayonne | C17: ='Boys Reg'!H14 -> 154 | D17: ='Boys Reg'!I14 -> 168 | E17: ='Boys Reg'!J14 -> 142 | F17: 464 | G17: 168
A18: ='Boys Reg'!G4 -> Chris Munoz | B18: ='Boys Reg'!$G$2 -> Ocean | C18: ='Boys Reg'!H4 -> 190 | D18: ='Boys Reg'!I4 -> 126 | E18: ='Boys Reg'!J4 -> 147 | F18: 463 | G18: 190
A19: ='Boys Reg'!B6 -> Zach Schiavone | B19: ='Boys Reg'!$B$2 -> SJV | C19: ='Boys Reg'!C6 -> 162 | D19: ='Boys Reg'!D6 -> 115 | E19: ='Boys Reg'!E6 -> 183 | F19: 460 | G19: 183
A20: ='Boys Reg'!G23 -> Ralph D'Antonio | B20: ='Boys Reg'!$G$22 -> Henry Hudson | C20: ='Boys Reg'!H23 -> 154 | D20: ='Boys Reg'!I23 -> 123 | E20: ='Boys Reg'!J23 -> 180 | F20: 457 | G20: 180
A21: ='Boys Reg'!B5 -> George Anderson | B21: ='Boys Reg'!$B$2 -> SJV | C21: ='Boys Reg'!C5 -> 167 | D21: ='Boys Reg'!D5 -> 158 | E21: ='Boys Reg'!E5 -> 128 | F21: 453 | G21: 167
A22: ='Boys Reg'!G7 -> Jason Norris | B22: ='Boys Reg'!$G$2 -> Ocean | C22: ='Boys Reg'!H7 -> 151 | D22: ='Boys Reg'!I7 -> 168 | E22: ='Boys Reg'!J7 -> 131 | F22: 450 | G22: 168
A23: ='Boys Reg'!B23 -> Logan Grillo | B23: ='Boys Reg'!$B$22 -> Matawan | C23: ='Boys Reg'!C23 -> 144 | D23: ='Boys Reg'!D23 -> 128 | E23: ='Boys Reg'!E23 -> 173 | F23: 445 | G23: 173
A24: ='Boys Reg'!G13 -> Efrain Gonzalez | B24: ='Boys Reg'!$G$12 -> Bayonne | C24: ='Boys Reg'!H13 -> 107 | D24: ='Boys Reg'!I13 -> 156 | E24: ='Boys Reg'!J13 -> 167 | F24: 430 | G24: 167
A25: ='Boys Reg'!G27 -> Billy Miller | B25: ='Boys Reg'!$G$22 -> Henry Hudson | C25: ='Boys Reg'!H27 -> 119 | D25: ='Boys Reg'!I27 -> 137 | E25: ='Boys Reg'!J27 -> 169 | F25: 425 | G25: 169
A26: ='Boys Reg'!B45 -> Hanna Hale | B26: ='Boys Reg'!$B$42 -> Mater Dei | C26: ='Boys Reg'!C45 -> 156 | D26: ='Boys Reg'!D45 -> 135 | E26: ='Boys Reg'!E45 -> 129 | F26: 420 | G26: 156
A27: ='Boys Reg'!B13 -> Joe Sautner | B27: ='Boys Reg'!$B$12 -> Keansburg | C27: ='Boys Reg'!C13 -> 197 | D27: ='Boys Reg'!D13 -> 103 | E27: ='Boys Reg'!E13 -> 116 | F27: 416 | G27: 197
A28: ='Boys Reg'!B16 -> Brian Laskiewicz | B28: ='Boys Reg'!$B$12 -> Keansburg | C28: ='Boys Reg'!C16 -> 124 | D28: ='Boys Reg'!D16 -> 169 | E28: ='Boys Reg'!E16 -> 120 | F28: 413 | G28: 169
A29: ='Boys Reg'!B15 -> Kyle Scott | B29: ='Boys Reg'!$B$12 -> Keansburg | C29: ='Boys Reg'!C15 -> 104 | D29: ='Boys Reg'!D15 -> 137 | E29: ='Boys Reg'!E15 -> 169 | F29: 410 | G29: 169
A30: ='Boys Reg'!B4 -> Matt Bruchez | B30: ='Boys Reg'!$B$2 -> SJV | C30: ='Boys Reg'!C4 -> 116 | D30: ='Boys Reg'!D4 -> 128 | E30: ='Boys Reg'!E4 -> 151 | F30: 395 | G30: 151
A31: ='Boys Reg'!G34 -> Hector Rosa | B31: ='Boys Reg'!$G$32 -> Roselle | C31: ='Boys Reg'!H34 -> 152 | D31: ='Boys Reg'!I34 -> 108 | E31: ='Boys Reg'!J34 -> 133 | F31: 393 | G31: 152
A32: ='Boys Reg'!B35 -> Resse Mehan | B32: ='Boys Reg'!$B$32 -> Keyport | C32: ='Boys Reg'!C35 -> 118 | D32: ='Boys Reg'!D35 -> 119 | E32: ='Boys Reg'!E35 -> 148 | F32: 385 | G32: 148
A33: ='Boys Reg'!B37 -> Jacen Shores | B33: ='Boys Reg'!$B$32 -> Keyport | C33: ='Boys Reg'!C37 -> 102 | D33: ='Boys Reg'!D37 -> 137 | E33: ='Boys Reg'!E37 -> 133 | F33: 372 | G33: 137
A34: ='Boys Reg'!G43 -> Daniel Sanchez | B34: ='Boys Reg'!$G$42 -> Lakewood | C34: ='Boys Reg'!H43 -> 113 | D34: ='Boys Reg'!I43 -> 152 | E34: ='Boys Reg'!J43 -> 102 | F34: 367 | G34: 152
A35: ='Boys Reg'!B14 -> Dominick Grasso | B35: ='Boys Reg'!$B$12 -> Keansburg | C35: ='Boys Reg'!C14 -> 128 | D35: ='Boys Reg'!D14 -> 126 | E35: ='Boys Reg'!E14 -> 110 | F35: 364 | G35: 128
A36: ='Boys Reg'!G46 -> Edgar Perez | B36: ='Boys Reg'!$G$42 -> Lakewood | C36: ='Boys Reg'!H46 -> 115 | D36: ='Boys Reg'!I46 -> 131 | E36: ='Boys Reg'!J46 -> 109 | F36: 355 | G36: 131
A37: ='Boys Reg'!B36 -> Josh Vazquez | B37: ='Boys Reg'!$B$32 -> Keyport | C37: ='Boys Reg'!C36 -> 111 | D37: ='Boys Reg'!D36 -> 122 | E37: ='Boys Reg'!E36 -> 109 | F37: 342 | G37: 122
A38: ='Boys Reg'!G33 -> ZiAyre Chevailer | B38: ='Boys Reg'!$G$32 -> Roselle | C38: ='Boys Reg'!H33 -> 124 | D38: ='Boys Reg'!I33 -> 113 | E38: ='Boys Reg'!J33 -> 102 | F38: 339 | G38: 124
A39: ='Boys Reg'!B44 -> Paris Merse | B39: ='Boys Reg'!$B$42 -> Mater Dei | C39: ='Boys Reg'!C44 -> 95 | D39: ='Boys Reg'!D44 -> 113 | E39: ='Boys Reg'!E44 -> 123 | F39: 331 | G39: 123
A40: ='Boys Reg'!B47 -> Joey Stanton | B40: ='Boys Reg'!$B$42 -> Mater Dei | C40: ='Boys Reg'!C47 -> 95 | D40: ='Boys Reg'!D47 -> 125 | E40: ='Boys Reg'!E47 -> 101 | F40: 321 | G40: 125
A41: ='Boys Reg'!B46 -> Chris Pfirrman | B41: ='Boys Reg'!$B$42 -> Mater Dei | C41: ='Boys Reg'!C46 -> 98 | D41: ='Boys Reg'!D46 -> 107 | E41: ='Boys Reg'!E46 -> 111 | F41: 316 | G41: 111
A42: ='Boys Reg'!B43 -> Alphonse Vota | B42: ='Boys Reg'!$B$42 -> Mater Dei | C42: ='Boys Reg'!C43 -> 77 | D42: ='Boys Reg'!D43 -> 116 | E42: ='Boys Reg'!E43 -> 120 | F42: 313 | G42: 120
A43: ='Boys Reg'!B34 -> Christian Oldhafer | B43: ='Boys Reg'!$B$32 -> Keyport | C43: ='Boys Reg'!C34 -> 116 | D43: ='Boys Reg'!D34 -> 95 | E43: ='Boys Reg'!E34 -> 78 | F43: 289 | G43: 116
A44: ='Boys Reg'!G28 -> Nick Brown | B44: ='Boys Reg'!$G$22 -> Henry Hudson | C44: ='Boys Reg'!H28 ->  | D44: ='Boys Reg'!I28 -> 138 | E44: ='Boys Reg'!J28 -> 135 | F44: 273 | G44: 138
A45: ='Boys Reg'!G24 -> Jason Rockafellow | B45: ='Boys Reg'!$G$22 -> Henry Hudson | C45: ='Boys Reg'!H24 -> 110 | D45: ='Boys Reg'!I24 -> 158 | E45: ='Boys Reg'!J24 ->  | F45: 268 | G45: 158
A46: ='Boys Reg'!B33 -> Michael Graham | B46: ='Boys Reg'!$B$32 -> Keyport | C46: ='Boys Reg'!C33 -> 85 | D46: ='Boys Reg'!D33 -> 88 | E46: ='Boys Reg'!E33 -> 78 | F46: 251 | G46: 88
A47: ='Boys Reg'!B3 -> Chris Moran | B47: ='Boys Reg'!$B$2 -> SJV | C47: ='Boys Reg'!C3 -> 113 | D47: ='Boys Reg'!D3 -> 123 | E47: ='Boys Reg'!E3 ->  | F47: 236 | G47: 123
A48: ='Boys Reg'!B24 -> Matt Lalor | B48: ='Boys Reg'!$B$22 -> Matawan | C48: ='Boys Reg'!C24 -> 111 | D48: ='Boys Reg'!D24 ->  | E48: ='Boys Reg'!E24 -> 95 | F48: 206 | G48: 111
A49: ='Boys Reg'!G48 -> Charles Kopcho | B49: ='Boys Reg'!$G$42 -> Lakewood | C49: ='Boys Reg'!H48 ->  | D49: ='Boys Reg'!I48 -> 112 | E49: ='Boys Reg'!J48 -> 89 | F49: 201 | G49: 112
A50: ='Boys Reg'!G45 -> Kevin Cosme | B50: ='Boys Reg'!$G$42 -> Lakewood | C50: ='Boys Reg'!H45 -> 111 | D50: ='Boys Reg'!I45 -> 75 | E50: ='Boys Reg'!J45 ->  | F50: 186 | G50: 111
A51: ='Boys Reg'!G44 -> Marro Rojas | B51: ='Boys Reg'!$G$42 -> Lakewood | C51: ='Boys Reg'!H44 -> 85 | D51: ='Boys Reg'!I44 ->  | E51: ='Boys Reg'!J44 -> 93 | F51: 178 | G51: 93
A52: ='Boys Reg'!B28 -> Noah Ali | B52: ='Boys Reg'!$B$22 -> Matawan | C52: ='Boys Reg'!C28 ->  | D52: ='Boys Reg'!D28 -> 105 | E52: ='Boys Reg'!E28 -> 70 | F52: 175 | G52: 105
A53: ='Boys Reg'!G29 -> Matt Crossan | B53: ='Boys Reg'!$G$22 -> Henry Hudson | C53: ='Boys Reg'!H29 ->  | D53: ='Boys Reg'!I29 ->  | E53: ='Boys Reg'!J29 -> 124 | F53: 124 | G53: 124
A54: ='Boys Reg'!B29 -> James Orleman | B54: ='Boys Reg'!$B$22 -> Matawan | C54: ='Boys Reg'!C29 ->  | D54: ='Boys Reg'!D29 -> 100 | E54: ='Boys Reg'!E29 ->  | F54: 100 | G54: 100
A55: ='Boys Reg'!G25 -> Chris Saunders | B55: ='Boys Reg'!$G$22 -> Henry Hudson | C55: ='Boys Reg'!H25 -> 89 | D55: ='Boys Reg'!I25 ->  | E55: ='Boys Reg'!J25 ->  | F55: 89 | G55: 89
A56: ='Boys Reg'!B25 -> Ethan Liranzo | B56: ='Boys Reg'!$B$22 -> Matawan | C56: ='Boys Reg'!C25 -> 84 | D56: ='Boys Reg'!D25 ->  | E56: ='Boys Reg'!E25 ->  | F56: 84 | G56: 84
A57: ='Boys Reg'!B8 -> Conor O'Grady | B57: ='Boys Reg'!$B$2 -> SJV | C57: ='Boys Reg'!C8 ->  | D57: ='Boys Reg'!D8 ->  | E57: ='Boys Reg'!E8 -> 76 | F57: 76 | G57: 76
A58: ='Boys Reg'!B57 ->  | B58: ='Boys Reg'!$B$52 -> Team 11 | C58: ='Boys Reg'!C57 ->  | D58: ='Boys Reg'!D57 ->  | E58: ='Boys Reg'!E57 ->  | F58: 0 | G58: 0
A59: ='Boys Reg'!B67 ->  | B59: ='Boys Reg'!$B$62 -> Team 13 | C59: ='Boys Reg'!C67 ->  | D59: ='Boys Reg'!D67 ->  | E59: ='Boys Reg'!E67 ->  | F59: 0 | G59: 0
A60: ='Boys Reg'!B65 ->  | B60: ='Boys Reg'!$B$62 -> Team 13 | C60: ='Boys Reg'!C65 ->  | D60: ='Boys Reg'!D65 ->  | E60: ='Boys Reg'!E65 ->  | F60: 0 | G60: 0
A61: ='Boys Reg'!B66 ->  | B61: ='Boys Reg'!$B$62 -> Team 13 | C61: ='Boys Reg'!C66 ->  | D61: ='Boys Reg'!D66 ->  | E61: ='Boys Reg'!E66 ->  | F61: 0 | G61: 0
A62: ='Boys Reg'!B63 ->  | B62: ='Boys Reg'!$B$62 -> Team 13 | C62: ='Boys Reg'!C63 ->  | D62: ='Boys Reg'!D63 ->  | E62: ='Boys Reg'!E63 ->  | F62: 0 | G62: 0
A63: ='Boys Reg'!B55 ->  | B63: ='Boys Reg'!$B$52 -> Team 11 | C63: ='Boys Reg'!C55 ->  | D63: ='Boys Reg'!D55 ->  | E63: ='Boys Reg'!E55 ->  | F63: 0 | G63: 0
A64: ='Boys Reg'!B56 ->  | B64: ='Boys Reg'!$B$52 -> Team 11 | C64: ='Boys Reg'!C56 ->  | D64: ='Boys Reg'!D56 ->  | E64: ='Boys Reg'!E56 ->  | F64: 0 | G64: 0
A65: ='Boys Reg'!B64 ->  | B65: ='Boys Reg'!$B$62 -> Team 13 | C65: ='Boys Reg'!C64 ->  | D65: ='Boys Reg'!D64 ->  | E65: ='Boys Reg'!E64 ->  | F65: 0 | G65: 0
A66: ='Boys Reg'!G57 ->  | B66: ='Boys Reg'!$G$52 -> Team 12 | C66: ='Boys Reg'!H57 ->  | D66: ='Boys Reg'!I57 ->  | E66: ='Boys Reg'!J57 ->  | F66: 0 | G66: 0
A67: ='Boys Reg'!G56 ->  | B67: ='Boys Reg'!$G$52 -> Team 12 | C67: ='Boys Reg'!H56 ->  | D67: ='Boys Reg'!I56 ->  | E67: ='Boys Reg'!J56 ->  | F67: 0 | G67: 0
A68: ='Boys Reg'!B54 ->  | B68: ='Boys Reg'!$B$52 -> Team 11 | C68: ='Boys Reg'!C54 ->  | D68: ='Boys Reg'!D54 ->  | E68: ='Boys Reg'!E54 ->  | F68: 0 | G68: 0
A69: ='Boys Reg'!G55 ->  | B69: ='Boys Reg'!$G$52 -> Team 12 | C69: ='Boys Reg'!H55 ->  | D69: ='Boys Reg'!I55 ->  | E69: ='Boys Reg'!J55 ->  | F69: 0 | G69: 0
A70: ='Boys Reg'!G53 ->  | B70: ='Boys Reg'!$G$52 -> Team 12 | C70: ='Boys Reg'!H53 ->  | D70: ='Boys Reg'!I53 ->  | E70: ='Boys Reg'!J53 ->  | F70: 0 | G70: 0
A71: ='Boys Reg'!B53 ->  | B71: ='Boys Reg'!$B$52 -> Team 11 | C71: ='Boys Reg'!C53 ->  | D71: ='Boys Reg'!D53 ->  | E71: ='Boys Reg'!E53 ->  | F71: 0 | G71: 0
A72: ='Boys Reg'!B9 ->  | B72: ='Boys Reg'!$B$2 -> SJV | C72: ='Boys Reg'!C9 ->  | D72: ='Boys Reg'!D9 ->  | E72: ='Boys Reg'!E9 ->  | F72: 0 | G72: 0
A73: ='Boys Reg'!G19 ->  | B73: ='Boys Reg'!$G$12 -> Bayonne | C73: ='Boys Reg'!H19 ->  | D73: ='Boys Reg'!I19 ->  | E73: ='Boys Reg'!J19 ->  | F73: 0 | G73: 0
A74: ='Boys Reg'!G18 ->  | B74: ='Boys Reg'!$G$12 -> Bayonne | C74: ='Boys Reg'!H18 ->  | D74: ='Boys Reg'!I18 ->  | E74: ='Boys Reg'!J18 ->  | F74: 0 | G74: 0
A75: ='Boys Reg'!B85 ->  | B75: ='Boys Reg'!$B$82 -> Team 17 | C75: ='Boys Reg'!C85 ->  | D75: ='Boys Reg'!D85 ->  | E75: ='Boys Reg'!E85 ->  | F75: 0 | G75: 0
A76: ='Boys Reg'!G73 ->  | B76: ='Boys Reg'!$G$72 -> Team 16 | C76: ='Boys Reg'!H73 ->  | D76: ='Boys Reg'!I73 ->  | E76: ='Boys Reg'!J73 ->  | F76: 0 | G76: 0
A77: ='Boys Reg'!G67 ->  | B77: ='Boys Reg'!$G$62 -> Team 14 | C77: ='Boys Reg'!H67 ->  | D77: ='Boys Reg'!I67 ->  | E77: ='Boys Reg'!J67 ->  | F77: 0 | G77: 0
A78: ='Boys Reg'!G76 ->  | B78: ='Boys Reg'!$G$72 -> Team 16 | C78: ='Boys Reg'!H76 ->  | D78: ='Boys Reg'!I76 ->  | E78: ='Boys Reg'!J76 ->  | F78: 0 | G78: 0
A79: ='Boys Reg'!B83 ->  | B79: ='Boys Reg'!$B$82 -> Team 17 | C79: ='Boys Reg'!C83 ->  | D79: ='Boys Reg'!D83 ->  | E79: ='Boys Reg'!E83 ->  | F79: 0 | G79: 0
A80: ='Boys Reg'!B87 ->  | B80: ='Boys Reg'!$B$82 -> Team 17 | C80: ='Boys Reg'!C87 ->  | D80: ='Boys Reg'!D87 ->  | E80: ='Boys Reg'!E87 ->  | F80: 0 | G80: 0
A81: ='Boys Reg'!G74 ->  | B81: ='Boys Reg'!$G$72 -> Team 16 | C81: ='Boys Reg'!H74 ->  | D81: ='Boys Reg'!I74 ->  | E81: ='Boys Reg'!J74 ->  | F81: 0 | G81: 0
A82: ='Boys Reg'!B84 ->  | B82: ='Boys Reg'!$B$82 -> Team 17 | C82: ='Boys Reg'!C84 ->  | D82: ='Boys Reg'!D84 ->  | E82: ='Boys Reg'!E84 ->  | F82: 0 | G82: 0
A83: ='Boys Reg'!B86 ->  | B83: ='Boys Reg'!$B$82 -> Team 17 | C83: ='Boys Reg'!C86 ->  | D83: ='Boys Reg'!D86 ->  | E83: ='Boys Reg'!E86 ->  | F83: 0 | G83: 0
A84: ='Boys Reg'!B77 ->  | B84: ='Boys Reg'!$B$72 -> Team 15 | C84: ='Boys Reg'!C77 ->  | D84: ='Boys Reg'!D77 ->  | E84: ='Boys Reg'!E77 ->  | F84: 0 | G84: 0
A85: ='Boys Reg'!G77 ->  | B85: ='Boys Reg'!$G$72 -> Team 16 | C85: ='Boys Reg'!H77 ->  | D85: ='Boys Reg'!I77 ->  | E85: ='Boys Reg'!J77 ->  | F85: 0 | G85: 0
A86: ='Boys Reg'!B73 ->  | B86: ='Boys Reg'!$B$72 -> Team 15 | C86: ='Boys Reg'!C73 ->  | D86: ='Boys Reg'!D73 ->  | E86: ='Boys Reg'!E73 ->  | F86: 0 | G86: 0
A87: ='Boys Reg'!G87 ->  | B87: ='Boys Reg'!$G$82 -> Team 18 | C87: ='Boys Reg'!H87 ->  | D87: ='Boys Reg'!I87 ->  | E87: ='Boys Reg'!J87 ->  | F87: 0 | G87: 0
A88: ='Boys Reg'!G75 ->  | B88: ='Boys Reg'!$G$72 -> Team 16 | C88: ='Boys Reg'!H75 ->  | D88: ='Boys Reg'!I75 ->  | E88: ='Boys Reg'!J75 ->  | F88: 0 | G88: 0
A89: ='Boys Reg'!G83 ->  | B89: ='Boys Reg'!$G$82 -> Team 18 | C89: ='Boys Reg'!H83 ->  | D89: ='Boys Reg'!I83 ->  | E89: ='Boys Reg'!J83 ->  | F89: 0 | G89: 0
A90: ='Boys Reg'!B76 ->  | B90: ='Boys Reg'!$B$72 -> Team 15 | C90: ='Boys Reg'!C76 ->  | D90: ='Boys Reg'!D76 ->  | E90: ='Boys Reg'!E76 ->  | F90: 0 | G90: 0
A91: ='Boys Reg'!B75 ->  | B91: ='Boys Reg'!$B$72 -> Team 15 | C91: ='Boys Reg'!C75 ->  | D91: ='Boys Reg'!D75 ->  | E91: ='Boys Reg'!E75 ->  | F91: 0 | G91: 0
A92: ='Boys Reg'!G66 ->  | B92: ='Boys Reg'!$G$62 -> Team 14 | C92: ='Boys Reg'!H66 ->  | D92: ='Boys Reg'!I66 ->  | E92: ='Boys Reg'!J66 ->  | F92: 0 | G92: 0
A93: ='Boys Reg'!G85 ->  | B93: ='Boys Reg'!$G$82 -> Team 18 | C93: ='Boys Reg'!H85 ->  | D93: ='Boys Reg'!I85 ->  | E93: ='Boys Reg'!J85 ->  | F93: 0 | G93: 0
A94: ='Boys Reg'!G86 ->  | B94: ='Boys Reg'!$G$82 -> Team 18 | C94: ='Boys Reg'!H86 ->  | D94: ='Boys Reg'!I86 ->  | E94: ='Boys Reg'!J86 ->  | F94: 0 | G94: 0
A95: ='Boys Reg'!G63 ->  | B95: ='Boys Reg'!$G$62 -> Team 14 | C95: ='Boys Reg'!H63 ->  | D95: ='Boys Reg'!I63 ->  | E95: ='Boys Reg'!J63 ->  | F95: 0 | G95: 0
A96: ='Boys Reg'!G58 ->  | B96: ='Boys Reg'!$G$52 -> Team 12 | C96: ='Boys Reg'!H58 ->  | D96: ='Boys Reg'!I58 ->  | E96: ='Boys Reg'!J58 ->  | F96: 0 | G96: 0
A97: ='Boys Reg'!B58 ->  | B97: ='Boys Reg'!$B$52 -> Team 11 | C97: ='Boys Reg'!C58 ->  | D97: ='Boys Reg'!D58 ->  | E97: ='Boys Reg'!E58 ->  | F97: 0 | G97: 0
A98: ='Boys Reg'!G54 ->  | B98: ='Boys Reg'!$G$52 -> Team 12 | C98: ='Boys Reg'!H54 ->  | D98: ='Boys Reg'!I54 ->  | E98: ='Boys Reg'!J54 ->  | F98: 0 | G98: 0
A99: ='Boys Reg'!G84 ->  | B99: ='Boys Reg'!$G$82 -> Team 18 | C99: ='Boys Reg'!H84 ->  | D99: ='Boys Reg'!I84 ->  | E99: ='Boys Reg'!J84 ->  | F99: 0 | G99: 0
A100: ='Boys Reg'!B18 ->  | B100: ='Boys Reg'!$B$12 -> Keansburg | C100: ='Boys Reg'!C18 ->  | D100: ='Boys Reg'!D18 ->  | E100: ='Boys Reg'!E18 ->  | F100: 0 | G100: 0
A101: ='Boys Reg'!G8 -> Kevin Reyes | B101: ='Boys Reg'!$G$2 -> Ocean | C101: ='Boys Reg'!H8 ->  | D101: ='Boys Reg'!I8 ->  | E101: ='Boys Reg'!J8 ->  | F101: 0 | G101: 0
A102: ='Boys Reg'!G64 ->  | B102: ='Boys Reg'!$G$62 -> Team 14 | C102: ='Boys Reg'!H64 ->  | D102: ='Boys Reg'!I64 ->  | E102: ='Boys Reg'!J64 ->  | F102: 0 | G102: 0
A103: ='Boys Reg'!G69 ->  | B103: ='Boys Reg'!$G$62 -> Team 14 | C103: ='Boys Reg'!H69 ->  | D103: ='Boys Reg'!I69 ->  | E103: ='Boys Reg'!J69 ->  | F103: 0 | G103: 0
A104: ='Boys Reg'!B74 ->  | B104: ='Boys Reg'!$B$72 -> Team 15 | C104: ='Boys Reg'!C74 ->  | D104: ='Boys Reg'!D74 ->  | E104: ='Boys Reg'!E74 ->  | F104: 0 | G104: 0
A105: ='Boys Reg'!B30 ->  | B105: ='Boys Reg'!$B$22 -> Matawan | C105: ='Boys Reg'!C30 ->  | D105: ='Boys Reg'!D30 ->  | E105: ='Boys Reg'!E30 ->  | F105: 0 | G105: 0
A106: ='Boys Reg'!G68 ->  | B106: ='Boys Reg'!$G$62 -> Team 14 | C106: ='Boys Reg'!H68 ->  | D106: ='Boys Reg'!I68 ->  | E106: ='Boys Reg'!J68 ->  | F106: 0 | G106: 0
A107: ='Boys Reg'!B78 ->  | B107: ='Boys Reg'!$B$72 -> Team 15 | C107: ='Boys Reg'!C78 ->  | D107: ='Boys Reg'!D78 ->  | E107: ='Boys Reg'!E78 ->  | F107: 0 | G107: 0
A108: ='Boys Reg'!G65 ->  | B108: ='Boys Reg'!$G$62 -> Team 14 | C108: ='Boys Reg'!H65 ->  | D108: ='Boys Reg'!I65 ->  | E108: ='Boys Reg'!J65 ->  | F108: 0 | G108: 0
A109: ='Boys Reg'!B10 ->  | B109: ='Boys Reg'!$B$2 -> SJV | C109: ='Boys Reg'!C10 ->  | D109: ='Boys Reg'!D10 ->  | E109: ='Boys Reg'!E10 ->  | F109: 0 | G109: 0
A110: ='Boys Reg'!G9 -> Nicholas Foy | B110: ='Boys Reg'!$G$2 -> Ocean | C110: ='Boys Reg'!H9 ->  | D110: ='Boys Reg'!I9 ->  | E110: ='Boys Reg'!J9 ->  | F110: 0 | G110: 0
A111: ='Boys Reg'!G10 ->  | B111: ='Boys Reg'!$G$2 -> Ocean | C111: ='Boys Reg'!H10 ->  | D111: ='Boys Reg'!I10 ->  | E111: ='Boys Reg'!J10 ->  | F111: 0 | G111: 0
A112: ='Boys Reg'!B19 ->  | B112: ='Boys Reg'!$B$12 -> Keansburg | C112: ='Boys Reg'!C19 ->  | D112: ='Boys Reg'!D19 ->  | E112: ='Boys Reg'!E19 ->  | F112: 0 | G112: 0
A113: ='Boys Reg'!B20 ->  | B113: ='Boys Reg'!$B$12 -> Keansburg | C113: ='Boys Reg'!C20 ->  | D113: ='Boys Reg'!D20 ->  | E113: ='Boys Reg'!E20 ->  | F113: 0 | G113: 0
A114: ='Boys Reg'!G20 ->  | B114: ='Boys Reg'!$G$12 -> Bayonne | C114: ='Boys Reg'!H20 ->  | D114: ='Boys Reg'!I20 ->  | E114: ='Boys Reg'!J20 ->  | F114: 0 | G114: 0
A115: ='Boys Reg'!G30 ->  | B115: ='Boys Reg'!$G$22 -> Henry Hudson | C115: ='Boys Reg'!H30 ->  | D115: ='Boys Reg'!I30 ->  | E115: ='Boys Reg'!J30 ->  | F115: 0 | G115: 0
A116: ='Boys Reg'!B38 -> Hunter Yale | B116: ='Boys Reg'!$B$32 -> Keyport | C116: ='Boys Reg'!C38 ->  | D116: ='Boys Reg'!D38 ->  | E116: ='Boys Reg'!E38 ->  | F116: 0 | G116: 0
A117: ='Boys Reg'!B39 -> Jake Staeger | B117: ='Boys Reg'!$B$32 -> Keyport | C117: ='Boys Reg'!C39 ->  | D117: ='Boys Reg'!D39 ->  | E117: ='Boys Reg'!E39 ->  | F117: 0 | G117: 0
A118: ='Boys Reg'!B40 -> Nick Royle | B118: ='Boys Reg'!$B$32 -> Keyport | C118: ='Boys Reg'!C40 ->  | D118: ='Boys Reg'!D40 ->  | E118: ='Boys Reg'!E40 ->  | F118: 0 | G118: 0
A119: ='Boys Reg'!G38 -> James Luna Vazquez | B119: ='Boys Reg'!$G$32 -> Roselle | C119: ='Boys Reg'!H38 ->  | D119: ='Boys Reg'!I38 ->  | E119: ='Boys Reg'!J38 ->  | F119: 0 | G119: 0
A120: ='Boys Reg'!G39 ->  | B120: ='Boys Reg'!$G$32 -> Roselle | C120: ='Boys Reg'!H39 ->  | D120: ='Boys Reg'!I39 ->  | E120: ='Boys Reg'!J39 ->  | F120: 0 | G120: 0
A121: ='Boys Reg'!G40 ->  | B121: ='Boys Reg'!$G$32 -> Roselle | C121: ='Boys Reg'!H40 ->  | D121: ='Boys Reg'!I40 ->  | E121: ='Boys Reg'!J40 ->  | F121: 0 | G121: 0
A122: ='Boys Reg'!B48 ->  | B122: ='Boys Reg'!$B$42 -> Mater Dei | C122: ='Boys Reg'!C48 ->  | D122: ='Boys Reg'!D48 ->  | E122: ='Boys Reg'!E48 ->  | F122: 0 | G122: 0
A123: ='Boys Reg'!B49 ->  | B123: ='Boys Reg'!$B$42 -> Mater Dei | C123: ='Boys Reg'!C49 ->  | D123: ='Boys Reg'!D49 ->  | E123: ='Boys Reg'!E49 ->  | F123: 0 | G123: 0
A124: ='Boys Reg'!B50 ->  | B124: ='Boys Reg'!$B$42 -> Mater Dei | C124: ='Boys Reg'!C50 ->  | D124: ='Boys Reg'!D50 ->  | E124: ='Boys Reg'!E50 ->  | F124: 0 | G124: 0
A125: ='Boys Reg'!G49 -> Sergio Vargas | B125: ='Boys Reg'!$G$42 -> Lakewood | C125: ='Boys Reg'!H49 ->  | D125: ='Boys Reg'!I49 ->  | E125: ='Boys Reg'!J49 ->  | F125: 0 | G125: 0
A126: ='Boys Reg'!G50 -> Carlos Palafox | B126: ='Boys Reg'!$G$42 -> Lakewood | C126: ='Boys Reg'!H50 ->  | D126: ='Boys Reg'!I50 ->  | E126: ='Boys Reg'!J50 ->  | F126: 0 | G126: 0
A127: ='Boys Reg'!B59 ->  | B127: ='Boys Reg'!$B$52 -> Team 11 | C127: ='Boys Reg'!C59 ->  | D127: ='Boys Reg'!D59 ->  | E127: ='Boys Reg'!E59 ->  | F127: 0 | G127: 0
A128: ='Boys Reg'!B60 ->  | B128: ='Boys Reg'!$B$52 -> Team 11 | C128: ='Boys Reg'!C60 ->  | D128: ='Boys Reg'!D60 ->  | E128: ='Boys Reg'!E60 ->  | F128: 0 | G128: 0
A129: ='Boys Reg'!G59 ->  | B129: ='Boys Reg'!$G$52 -> Team 12 | C129: ='Boys Reg'!H59 ->  | D129: ='Boys Reg'!I59 ->  | E129: ='Boys Reg'!J59 ->  | F129: 0 | G129: 0
A130: ='Boys Reg'!G60 ->  | B130: ='Boys Reg'!$G$52 -> Team 12 | C130: ='Boys Reg'!H60 ->  | D130: ='Boys Reg'!I60 ->  | E130: ='Boys Reg'!J60 ->  | F130: 0 | G130: 0
A131: ='Boys Reg'!B68 ->  | B131: ='Boys Reg'!$B$62 -> Team 13 | C131: ='Boys Reg'!C68 ->  | D131: ='Boys Reg'!D68 ->  | E131: ='Boys Reg'!E68 ->  | F131: 0 | G131: 0
A132: ='Boys Reg'!B69 ->  | B132: ='Boys Reg'!$B$62 -> Team 13 | C132: ='Boys Reg'!C69 ->  | D132: ='Boys Reg'!D69 ->  | E132: ='Boys Reg'!E69 ->  | F132: 0 | G132: 0
A133: ='Boys Reg'!B70 ->  | B133: ='Boys Reg'!$B$62 -> Team 13 | C133: ='Boys Reg'!C70 ->  | D133: ='Boys Reg'!D70 ->  | E133: ='Boys Reg'!E70 ->  | F133: 0 | G133: 0
A134: ='Boys Reg'!G70 ->  | B134: ='Boys Reg'!$G$62 -> Team 14 | C134: ='Boys Reg'!H70 ->  | D134: ='Boys Reg'!I70 ->  | E134: ='Boys Reg'!J70 ->  | F134: 0 | G134: 0
A135: ='Boys Reg'!B79 ->  | B135: ='Boys Reg'!$B$72 -> Team 15 | C135: ='Boys Reg'!C79 ->  | D135: ='Boys Reg'!D79 ->  | E135: ='Boys Reg'!E79 ->  | F135: 0 | G135: 0
A136: ='Boys Reg'!B80 ->  | B136: ='Boys Reg'!$B$72 -> Team 15 | C136: ='Boys Reg'!C80 ->  | D136: ='Boys Reg'!D80 ->  | E136: ='Boys Reg'!E80 ->  | F136: 0 | G136: 0
A137: ='Boys Reg'!G78 ->  | B137: ='Boys Reg'!$G$72 -> Team 16 | C137: ='Boys Reg'!H78 ->  | D137: ='Boys Reg'!I78 ->  | E137: ='Boys Reg'!J78 ->  | F137: 0 | G137: 0
A138: ='Boys Reg'!G79 ->  | B138: ='Boys Reg'!$G$72 -> Team 16 | C138: ='Boys Reg'!H79 ->  | D138: ='Boys Reg'!I79 ->  | E138: ='Boys Reg'!J79 ->  | F138: 0 | G138: 0
A139: ='Boys Reg'!G80 ->  | B139: ='Boys Reg'!$G$72 -> Team 16 | C139: ='Boys Reg'!H80 ->  | D139: ='Boys Reg'!I80 ->  | E139: ='Boys Reg'!J80 ->  | F139: 0 | G139: 0
A140: ='Boys Reg'!B88 ->  | B140: ='Boys Reg'!$B$82 -> Team 17 | C140: ='Boys Reg'!C88 ->  | D140: ='Boys Reg'!D88 ->  | E140: ='Boys Reg'!E88 ->  | F140: 0 | G140: 0
A141: ='Boys Reg'!B89 ->  | B141: ='Boys Reg'!$B$82 -> Team 17 | C141: ='Boys Reg'!C89 ->  | D141: ='Boys Reg'!D89 ->  | E141: ='Boys Reg'!E89 ->  | F141: 0 | G141: 0
A142: ='Boys Reg'!B90 ->  | B142: ='Boys Reg'!$B$82 -> Team 17 | C142: ='Boys Reg'!C90 ->  | D142: ='Boys Reg'!D90 ->  | E142: ='Boys Reg'!E90 ->  | F142: 0 | G142: 0
A143: ='Boys Reg'!G88 ->  | B143: ='Boys Reg'!$G$82 -> Team 18 | C143: ='Boys Reg'!H88 ->  | D143: ='Boys Reg'!I88 ->  | E143: ='Boys Reg'!J88 ->  | F143: 0 | G143: 0
A144: ='Boys Reg'!G89 ->  | B144: ='Boys Reg'!$G$82 -> Team 18 | C144: ='Boys Reg'!H89 ->  | D144: ='Boys Reg'!I89 ->  | E144: ='Boys Reg'!J89 ->  | F144: 0 | G144: 0
A145: ='Boys Reg'!G90 ->  | B145: ='Boys Reg'!$G$82 -> Team 18 | C145: ='Boys Reg'!H90 ->  | D145: ='Boys Reg'!I90 ->  | E145: ='Boys Reg'!J90 ->  | F145: 0 | G145: 0

Sheet Boys Totals
A1: Place | B1: School | C1: Game 1 | D1: Game 2 | E1: Sub | F1: Game 3 | G1: Total
A2: 1 | B2: ='Boys Reg'!$G$2 -> Ocean | C2: ='Boys Reg'!H11 -> 1004 | D2: ='Boys Reg'!I11 -> 820 | E2: =SUM(C2:D2) -> 1824 | F2: ='Boys Reg'!$J$11 -> 827 | G2: =SUM(E2:F2) -> 2651
A3: 2 | B3: ='Boys Reg'!$G$32 -> Roselle | C3: ='Boys Reg'!H41 -> 788 | D3: ='Boys Reg'!I41 -> 871 | E3: 1659 | F3: ='Boys Reg'!$J$41 -> 872 | G3: 2531
A4: 3 | B4: ='Boys Reg'!$G$12 -> Bayonne | C4: ='Boys Reg'!H21 -> 752 | D4: ='Boys Reg'!I21 -> 913 | E4: 1665 | F4: ='Boys Reg'!$J$21 -> 814 | G4: 2479
A5: 4 | B5: ='Boys Reg'!$B$2 -> SJV | C5: ='Boys Reg'!C11 -> 705 | D5: ='Boys Reg'!D11 -> 716 | E5: 1421 | F5: ='Boys Reg'!$E$11 -> 740 | G5: 2161
A6: 5 | B6: ='Boys Reg'!$B$12 -> Keansburg | C6: ='Boys Reg'!C21 -> 740 | D6: ='Boys Reg'!D21 -> 686 | E6: 1426 | F6: ='Boys Reg'!$E$21 -> 723 | G6: 2149
A7: 6 | B7: ='Boys Reg'!$G$22 -> Henry Hudson | C7: ='Boys Reg'!H31 -> 630 | D7: ='Boys Reg'!I31 -> 735 | E7: 1365 | F7: ='Boys Reg'!$J$31 -> 783 | G7: 2148
A8: 7 | B8: ='Boys Reg'!$B$22 -> Matawan | C8: ='Boys Reg'!C31 -> 722 | D8: ='Boys Reg'!D31 -> 642 | E8: 1364 | F8: ='Boys Reg'!$E$31 -> 710 | G8: 2074
A9: 8 | B9: ='Boys Reg'!$G$42 -> Lakewood | C9: ='Boys Reg'!H51 -> 585 | D9: ='Boys Reg'!I51 -> 621 | E9: 1206 | F9: ='Boys Reg'!$J$51 -> 565 | G9: 1771
A10: 9 | B10: ='Boys Reg'!$B$42 -> Mater Dei | C10: ='Boys Reg'!C51 -> 521 | D10: ='Boys Reg'!D51 -> 596 | E10: 1117 | F10: ='Boys Reg'!$E$51 -> 584 | G10: 1701
A11: 10 | B11: ='Boys Reg'!$B$32 -> Keyport | C11: ='Boys Reg'!C41 -> 532 | D11: ='Boys Reg'!D41 -> 561 | E11: 1093 | F11: ='Boys Reg'!$E$41 -> 546 | G11: 1639
A12: 11 | B12: ='Boys Reg'!$B$62 -> Team 13 | C12: ='Boys Reg'!C71 -> 0 | D12: ='Boys Reg'!D71 -> 0 | E12: 0 | F12: ='Boys Reg'!$E$71 -> 0 | G12: 0
A13: 12 | B13: ='Boys Reg'!$B$52 -> Team 11 | C13: ='Boys Reg'!C61 -> 0 | D13: ='Boys Reg'!D61 -> 0 | E13: 0 | F13: ='Boys Reg'!$E$61 -> 0 | G13: 0
A14: 13 | B14: ='Boys Reg'!$G$52 -> Team 12 | C14: ='Boys Reg'!H61 -> 0 | D14: ='Boys Reg'!I61 -> 0 | E14: 0 | F14: ='Boys Reg'!$J$61 -> 0 | G14: 0
B15: ='Boys Reg'!$B$82 -> Team 17 | C15: ='Boys Reg'!C91 -> 0 | D15: ='Boys Reg'!D91 -> 0 | E15: 0 | F15: ='Boys Reg'!$E$91 -> 0 | G15: 0
B16: ='Boys Reg'!$G$72 -> Team 16 | C16: ='Boys Reg'!H81 -> 0 | D16: ='Boys Reg'!I81 -> 0 | E16: 0 | F16: ='Boys Reg'!$J$81 -> 0 | G16: 0
B17: ='Boys Reg'!$B$72 -> Team 15 | C17: ='Boys Reg'!C81 -> 0 | D17: ='Boys Reg'!D81 -> 0 | E17: 0 | F17: ='Boys Reg'!$E$81 -> 0 | G17: 0
B18: ='Boys Reg'!$G$82 -> Team 18 | C18: ='Boys Reg'!H91 -> 0 | D18: ='Boys Reg'!I91 -> 0 | E18: 0 | F18: ='Boys Reg'!$J$91 -> 0 | G18: 0
B19: ='Boys Reg'!$G$62 -> Team 14 | C19: ='Boys Reg'!H71 -> 0 | D19: ='Boys Reg'!I71 -> 0 | E19: 0 | F19: ='Boys Reg'!$J$71 -> 0 | G19: 0

Sheet Girls Reg
A1: Team | B1: School/Bowlers | C1: Game 1 | D1: Game 2 | E1: Game 3 | F1: Team | G1: School/Bowlers | H1: Game 1 | I1: Game 2 | J1: Game 3
A2: 1 | B2: Henry Hudson | F2: 2 | G2: Lakewood
B3: Alina Souza | C3: 92 | D3: 64 | E3: 74 | G3: Yoselyn Montes | H3: 95 | I3: 130 | J3: 105
B4: Orianna Nolan | C4: 111 | D4: 109 | E4: 94 | G4: Amelia Martinez | H4: 80 | I4: 82
B5: Julia Rockafellow | C5: 84 | D5: 87 | E5: 90 | G5: Doreley Ruiz | H5: 116 | I5: 86 | J5: 102
B6: Claire Dodge | C6: 84 | D6: 116 | E6: 90 | G6: Maria Huerta | H6: 77
B7: Makayla Roberts | C7: 124 | D7: 129 | E7: 127 | G7: Luz Torres | H7: 135 | I7: 152 | J7: 119
G8: Daniela Cualutle | J8: 65
G9: Areli Valencia | I9: 108 | J9: 80
G10: Giselle Martinez
B11: Total | C11: =SUM(C2:C10) -> 495 | D11: 505 | E11: 475 | G11: Total | H11: =SUM(H2:H10) -> 503 | I11: 558 | J11: 471
A12: 3 | B12: SJV | F12: 4 | G12: Ocean
B13: Maggie Irizarry | C13: 94 | D13: 139 | E13: 96 | G13: Nora Abdelaziz | H13: 131 | I13: 138 | J13: 126
B14: Catherine O'Grady | C14: 87 | D14: 107 | E14: 141 | G14: Jazmia Ortiz | H14: 111 | I14: 124 | J14: 147
B15: Mary McAvoy | C15: 126 | D15: 148 | E15: 91 | G15: Erin Golej | H15: 79 | I15: 107 | J15: 109
B16: Caylei Hoffman | C16: 186 | D16: 168 | E16: 222 | G16: Chrissy Cundiff | H16: 107 | I16: 119 | J16: 172
B17: Eliabeth Brogna | C17: 168 | D17: 156 | E17: 155 | G17: Casey Russomano | H17: 171 | I17: 182 | J17: 151
G18: Zoe Konow
G19: McKenzie Rainford
B21: Total | C21: =SUM(C12:C20) -> 661 | D21: 718 | E21: 705 | G21: Total | H21: =SUM(H12:H20) -> 599 | I21: 670 | J21: 705
A22: 5 | B22: Keansburg | F22: 6 | G22: Bayonne
B23: Amy Cieslik | C23: 114 | D23: 104 | E23: 112 | G23: Lecia Williams | H23: 126 | I23: 101 | J23: 118
B24: Claire Brogan | C24: 104 | D24: 73 | E24: 60 | G24: Jenimya Holley | H24: 61 | I24: 68 | J24: 82
B25: Ariella Zambrano | C25: 77 | D25: 85 | E25: 91 | G25: Jenna Jozwiak | H25: 65 | I25: 53 | J25: 58
B26: Rebecca Kain | C26: 134 | D26: 144 | E26: 126 | G26: Brianne Peralta | H26: 149 | I26: 120 | J26: 81
B27: Emily Frizell | C27: 173 | D27: 144 | E27: 138 | G27: Victoria Cass | H27: 95 | I27: 102 | J27: 113
B31: Total | C31: =SUM(C22:C30) -> 602 | D31: 550 | E31: 527 | G31: Total | H31: =SUM(H22:H30) -> 496 | I31: 444 | J31: 452
A32: 7 | B32: Matawan | F32: 8 | G32: Middletown North
B33: Faith Smith | C33: 165 | D33: 222 | E33: 195 | G33: Ashley Guglielmo | H33: 189 | I33: 132 | J33: 140
B34: Kaitlyn Knover | C34: 148 | D34: 154 | E34: 120 | G34: Brenna Trevett | H34: 132 | I34: 120 | J34: 137
B35: Katie Devoe | C35: 178 | D35: 155 | E35: 174 | G35: Taylor Hanser | H35: 136 | I35: 154 | J35: 118
B36: Kiernan McShane | C36: 237 | D36: 112 | E36: 133 | G36: Victora Trigg | H36: 149 | I36: 177 | J36: 139
B37: Laura McConnon | C37: 167 | D37: 204 | E37: 148 | G37: Dakota Zadroga | H37: 118 | I37: 171 | J37: 172
G38: Faith Coll
G39: Sara Welsh
G40: Justice Buonsante
B41: Total | C41: =SUM(C32:C40) -> 895 | D41: 847 | E41: 770 | G41: Total | H41: =SUM(H32:H40) -> 724 | I41: 754 | J41: 706
A42: 9 | B42: Keyport | F42: 10 | G42: Roselle
B43: Madison Reynolds | C43: 147 | D43: 121 | E43: 110 | G43: Karla Torres | H43: 92 | I43: 78 | J43: 123
B44: Madelyn Yale | C44: 127 | D44: 148 | E44: 118 | G44: Alexis Staten | H44: 117 | I44: 118 | J44: 74
B45: Chelsea Geyer | C45: 114 | D45: 128 | E45: 116 | G45: Eamy Moluna | H45: 123 | I45: 126 | J45: 123
B46: Kimberly Kutschman | C46: 189 | D46: 179 | E46: 150 | G46: Synai Murray | H46: 57 | I46: 90 | J46: 94
B47: Emma Grabowski | C47: 144 | D47: 131 | E47: 148 | G47: Daniela Villacorta | H47: 92 | I47: 116 | J47: 102
B48: Jessica Argentina
B51: Total | C51: =SUM(C42:C50) -> 721 | D51: 707 | E51: 642 | G51: Total | H51: =SUM(H42:H50) -> 481 | I51: 528 | J51: 516
A52: 11 | F52: 12
B61: Total | C61: =SUM(C52:C60) -> 0 | D61: 0 | E61: 0 | G61: Total | H61: =SUM(H52:H60) -> 0 | I61: 0 | J61: 0
A62: 13 | F62: 14
B71: Total | C71: =SUM(C62:C70) -> 0 | D71: 0 | E71: 0 | G71: Total | H71: =SUM(H62:H70) -> 0 | I71: 0 | J71: 0
A72: 15 | F72: 16
B81: Total | C81: =SUM(C72:C80) -> 0 | D81: 0 | E81: 0 | G81: Total | H81: =SUM(H72:H80) -> 0 | I81: 0 | J81: 0

Sheet Girls Ind. High Game
A1: Name | B1: School | C1: Game 1 | D1: Game 2 | E1: Game 3 | F1: Series | G1: High Game
A2: ='Girls Reg'!B36 -> Kiernan McShane | B2: ='Girls Reg'!$B$32 -> Matawan | C2: ='Girls Reg'!C36 -> 237 | D2: ='Girls Reg'!D36 -> 112 | E2: ='Girls Reg'!E36 -> 133 | F2: =SUM(C2:E2) -> 482 | G2: =MAX(C2:E2) -> 237
A3: ='Girls Reg'!B33 -> Faith Smith | B3: ='Girls Reg'!$B$32 -> Matawan | C3: ='Girls Reg'!C33 -> 165 | D3: ='Girls Reg'!D33 -> 222 | E3: ='Girls Reg'!E33 -> 195 | F3: 582 | G3: 222
A4: ='Girls Reg'!B16 -> Caylei Hoffman | B4: ='Girls Reg'!$B$12 -> SJV | C4: ='Girls Reg'!C16 -> 186 | D4: ='Girls Reg'!D16 -> 168 | E4: ='Girls Reg'!E16 -> 222 | F4: 576 | G4: 222
A5: ='Girls Reg'!B37 -> Laura McConnon | B5: ='Girls Reg'!$B$32 -> Matawan | C5: ='Girls Reg'!C37 -> 167 | D5: ='Girls Reg'!D37 -> 204 | E5: ='Girls Reg'!E37 -> 148 | F5: 519 | G5: 204
A6: ='Girls Reg'!B46 -> Kimberly Kutschman | B6: ='Girls Reg'!$B$42 -> Keyport | C6: ='Girls Reg'!C46 -> 189 | D6: ='Girls Reg'!D46 -> 179 | E6: ='Girls Reg'!E46 -> 150 | F6: 518 | G6: 189
A7: ='Girls Reg'!G33 -> Ashley Guglielmo | B7: ='Girls Reg'!$G$32 -> Middletown North | C7: ='Girls Reg'!H33 -> 189 | D7: ='Girls Reg'!I33 -> 132 | E7: ='Girls Reg'!J33 -> 140 | F7: 461 | G7: 189
A8: ='Girls Reg'!G17 -> Casey Russomano | B8: ='Girls Reg'!$G$12 -> Ocean | C8: ='Girls Reg'!H17 -> 171 | D8: ='Girls Reg'!I17 -> 182 | E8: ='Girls Reg'!J17 -> 151 | F8: 504 | G8: 182
A9: ='Girls Reg'!B35 -> Katie Devoe | B9: ='Girls Reg'!$B$32 -> Matawan | C9: ='Girls Reg'!C35 -> 178 | D9: ='Girls Reg'!D35 -> 155 | E9: ='Girls Reg'!E35 -> 174 | F9: 507 | G9: 178
A10: ='Girls Reg'!G36 -> Victora Trigg | B10: ='Girls Reg'!$G$32 -> Middletown North | C10: ='Girls Reg'!H36 -> 149 | D10: ='Girls Reg'!I36 -> 177 | E10: ='Girls Reg'!J36 -> 139 | F10: 465 | G10: 177
A11: ='Girls Reg'!B27 -> Emily Frizell | B11: ='Girls Reg'!$B$22 -> Keansburg | C11: ='Girls Reg'!C27 -> 173 | D11: ='Girls Reg'!D27 -> 144 | E11: ='Girls Reg'!E27 -> 138 | F11: 455 | G11: 173
A12: ='Girls Reg'!G37 -> Dakota Zadroga | B12: ='Girls Reg'!$G$32 -> Middletown North | C12: ='Girls Reg'!H37 -> 118 | D12: ='Girls Reg'!I37 -> 171 | E12: ='Girls Reg'!J37 -> 172 | F12: 461 | G12: 172
A13: ='Girls Reg'!G16 -> Chrissy Cundiff | B13: ='Girls Reg'!$G$12 -> Ocean | C13: ='Girls Reg'!H16 -> 107 | D13: ='Girls Reg'!I16 -> 119 | E13: ='Girls Reg'!J16 -> 172 | F13: 398 | G13: 172
A14: ='Girls Reg'!B17 -> Eliabeth Brogna | B14: ='Girls Reg'!$B$12 -> SJV | C14: ='Girls Reg'!C17 -> 168 | D14: ='Girls Reg'!D17 -> 156 | E14: ='Girls Reg'!E17 -> 155 | F14: 479 | G14: 168
A15: ='Girls Reg'!B34 -> Kaitlyn Knover | B15: ='Girls Reg'!$B$32 -> Matawan | C15: ='Girls Reg'!C34 -> 148 | D15: ='Girls Reg'!D34 -> 154 | E15: ='Girls Reg'!E34 -> 120 | F15: 422 | G15: 154
A16: ='Girls Reg'!G35 -> Taylor Hanser | B16: ='Girls Reg'!$G$32 -> Middletown North | C16: ='Girls Reg'!H35 -> 136 | D16: ='Girls Reg'!I35 -> 154 | E16: ='Girls Reg'!J35 -> 118 | F16: 408 | G16: 154
A17: ='Girls Reg'!G7 -> Luz Torres | B17: ='Girls Reg'!$G$2 -> Lakewood | C17: ='Girls Reg'!H7 -> 135 | D17: ='Girls Reg'!I7 -> 152 | E17: ='Girls Reg'!J7 -> 119 | F17: 406 | G17: 152
A18: ='Girls Reg'!G26 -> Brianne Peralta | B18: ='Girls Reg'!$G$22 -> Bayonne | C18: ='Girls Reg'!H26 -> 149 | D18: ='Girls Reg'!I26 -> 120 | E18: ='Girls Reg'!J26 -> 81 | F18: 350 | G18: 149
A19: ='Girls Reg'!B44 -> Madelyn Yale | B19: ='Girls Reg'!$B$42 -> Keyport | C19: ='Girls Reg'!C44 -> 127 | D19: ='Girls Reg'!D44 -> 148 | E19: ='Girls Reg'!E44 -> 118 | F19: 393 | G19: 148
A20: ='Girls Reg'!B47 -> Emma Grabowski | B20: ='Girls Reg'!$B$42 -> Keyport | C20: ='Girls Reg'!C47 -> 144 | D20: ='Girls Reg'!D47 -> 131 | E20: ='Girls Reg'!E47 -> 148 | F20: 423 | G20: 148
A21: ='Girls Reg'!B15 -> Mary McAvoy | B21: ='Girls Reg'!$B$12 -> SJV | C21: ='Girls Reg'!C15 -> 126 | D21: ='Girls Reg'!D15 -> 148 | E21: ='Girls Reg'!E15 -> 91 | F21: 365 | G21: 148
A22: ='Girls Reg'!B43 -> Madison Reynolds | B22: ='Girls Reg'!$B$42 -> Keyport | C22: ='Girls Reg'!C43 -> 147 | D22: ='Girls Reg'!D43 -> 121 | E22: ='Girls Reg'!E43 -> 110 | F22: 378 | G22: 147
A23: ='Girls Reg'!G14 -> Jazmia Ortiz | B23: ='Girls Reg'!$G$12 -> Ocean | C23: ='Girls Reg'!H14 -> 111 | D23: ='Girls Reg'!I14 -> 124 | E23: ='Girls Reg'!J14 -> 147 | F23: 382 | G23: 147
A24: ='Girls Reg'!B26 -> Rebecca Kain | B24: ='Girls Reg'!$B$22 -> Keansburg | C24: ='Girls Reg'!C26 -> 134 | D24: ='Girls Reg'!D26 -> 144 | E24: ='Girls Reg'!E26 -> 126 | F24: 404 | G24: 144
A25: ='Girls Reg'!B14 -> Catherine O'Grady | B25: ='Girls Reg'!$B$12 -> SJV | C25: ='Girls Reg'!C14 -> 87 | D25: ='Girls Reg'!D14 -> 107 | E25: ='Girls Reg'!E14 -> 141 | F25: 335 | G25: 141
A26: ='Girls Reg'!B13 -> Maggie Irizarry | B26: ='Girls Reg'!$B$12 -> SJV | C26: ='Girls Reg'!C13 -> 94 | D26: ='Girls Reg'!D13 -> 139 | E26: ='Girls Reg'!E13 -> 96 | F26: 329 | G26: 139
A27: ='Girls Reg'!G13 -> Nora Abdelaziz | B27: ='Girls Reg'!$G$12 -> Ocean | C27: ='Girls Reg'!H13 -> 131 | D27: ='Girls Reg'!I13 -> 138 | E27: ='Girls Reg'!J13 -> 126 | F27: 395 | G27: 138
A28: ='Girls Reg'!G34 -> Brenna Trevett | B28: ='Girls Reg'!$G$32 -> Middletown North | C28: ='Girls Reg'!H34 -> 132 | D28: ='Girls Reg'!I34 -> 120 | E28: ='Girls Reg'!J34 -> 137 | F28: 389 | G28: 137
A29: ='Girls Reg'!G3 -> Yoselyn Montes | B29: ='Girls Reg'!$G$2 -> Lakewood | C29: ='Girls Reg'!H3 -> 95 | D29: ='Girls Reg'!I3 -> 130 | E29: ='Girls Reg'!J3 -> 105 | F29: 330 | G29: 130
A30: ='Girls Reg'!B7 -> Makayla Roberts | B30: ='Girls Reg'!$B$2 -> Henry Hudson | C30: ='Girls Reg'!C7 -> 124 | D30: ='Girls Reg'!D7 -> 129 | E30: ='Girls Reg'!E7 -> 127 | F30: 380 | G30: 129
A31: ='Girls Reg'!B45 -> Chelsea Geyer | B31: ='Girls Reg'!$B$42 -> Keyport | C31: ='Girls Reg'!C45 -> 114 | D31: ='Girls Reg'!D45 -> 128 | E31: ='Girls Reg'!E45 -> 116 | F31: 358 | G31: 128
A32: ='Girls Reg'!G23 -> Lecia Williams | B32: ='Girls Reg'!$G$22 -> Bayonne | C32: ='Girls Reg'!H23 -> 126 | D32: ='Girls Reg'!I23 -> 101 | E32: ='Girls Reg'!J23 -> 118 | F32: 345 | G32: 126
A33: ='Girls Reg'!G45 -> Eamy Moluna | B33: ='Girls Reg'!$G$42 -> Roselle | C33: ='Girls Reg'!H45 -> 123 | D33: ='Girls Reg'!I45 -> 126 | E33: ='Girls Reg'!J45 -> 123 | F33: 372 | G33: 126
A34: ='Girls Reg'!G43 -> Karla Torres | B34: ='Girls Reg'!$G$42 -> Roselle | C34: ='Girls Reg'!H43 -> 92 | D34: ='Girls Reg'!I43 -> 78 | E34: ='Girls Reg'!J43 -> 123 | F34: 293 | G34: 123
A35: ='Girls Reg'!G44 -> Alexis Staten | B35: ='Girls Reg'!$G$42 -> Roselle | C35: ='Girls Reg'!H44 -> 117 | D35: ='Girls Reg'!I44 -> 118 | E35: ='Girls Reg'!J44 -> 74 | F35: 309 | G35: 118
A36: ='Girls Reg'!G5 -> Doreley Ruiz | B36: ='Girls Reg'!$G$2 -> Lakewood | C36: ='Girls Reg'!H5 -> 116 | D36: ='Girls Reg'!I5 -> 86 | E36: ='Girls Reg'!J5 -> 102 | F36: 304 | G36: 116
A37: ='Girls Reg'!G47 -> Daniela Villacorta | B37: ='Girls Reg'!$G$42 -> Roselle | C37: ='Girls Reg'!H47 -> 92 | D37: ='Girls Reg'!I47 -> 116 | E37: ='Girls Reg'!J47 -> 102 | F37: 310 | G37: 116
A38: ='Girls Reg'!B6 -> Claire Dodge | B38: ='Girls Reg'!$B$2 -> Henry Hudson | C38: ='Girls Reg'!C6 -> 84 | D38: ='Girls Reg'!D6 -> 116 | E38: ='Girls Reg'!E6 -> 90 | F38: 290 | G38: 116
A39: ='Girls Reg'!B23 -> Amy Cieslik | B39: ='Girls Reg'!$B$22 -> Keansburg | C39: ='Girls Reg'!C23 -> 114 | D39: ='Girls Reg'!D23 -> 104 | E39: ='Girls Reg'!E23 -> 112 | F39: 330 | G39: 114
A40: ='Girls Reg'!G27 -> Victoria Cass | B40: ='Girls Reg'!$G$22 -> Bayonne | C40: ='Girls Reg'!H27 -> 95 | D40: ='Girls Reg'!I27 -> 102 | E40: ='Girls Reg'!J27 -> 113 | F40: 310 | G40: 113
A41: ='Girls Reg'!B4 -> Orianna Nolan | B41: ='Girls Reg'!$B$2 -> Henry Hudson | C41: ='Girls Reg'!C4 -> 111 | D41: ='Girls Reg'!D4 -> 109 | E41: ='Girls Reg'!E4 -> 94 | F41: 314 | G41: 111
A42: ='Girls Reg'!G15 -> Erin Golej | B42: ='Girls Reg'!$G$12 -> Ocean | C42: ='Girls Reg'!H15 -> 79 | D42: ='Girls Reg'!I15 -> 107 | E42: ='Girls Reg'!J15 -> 109 | F42: 295 | G42: 109
A43: ='Girls Reg'!G9 -> Areli Valencia | B43: ='Girls Reg'!$G$2 -> Lakewood | C43: ='Girls Reg'!H9 ->  | D43: ='Girls Reg'!I9 -> 108 | E43: ='Girls Reg'!J9 -> 80 | F43: 188 | G43: 108
A44: ='Girls Reg'!B24 -> Claire Brogan | B44: ='Girls Reg'!$B$22 -> Keansburg | C44: ='Girls Reg'!C24 -> 104 | D44: ='Girls Reg'!D24 -> 73 | E44: ='Girls Reg'!E24 -> 60 | F44: 237 | G44: 104
A45: ='Girls Reg'!G46 -> Synai Murray | B45: ='Girls Reg'!$G$42 -> Roselle | C45: ='Girls Reg'!H46 -> 57 | D45: ='Girls Reg'!I46 -> 90 | E45: ='Girls Reg'!J46 -> 94 | F45: 241 | G45: 94
A46: ='Girls Reg'!B3 -> Alina Souza | B46: ='Girls Reg'!$B$2 -> Henry Hudson | C46: ='Girls Reg'!C3 -> 92 | D46: ='Girls Reg'!D3 -> 64 | E46: ='Girls Reg'!E3 -> 74 | F46: 230 | G46: 92
A47: ='Girls Reg'!B25 -> Ariella Zambrano | B47: ='Girls Reg'!$B$22 -> Keansburg | C47: ='Girls Reg'!C25 -> 77 | D47: ='Girls Reg'!D25 -> 85 | E47: ='Girls Reg'!E25 -> 91 | F47: 253 | G47: 91
A48: ='Girls Reg'!B5 -> Julia Rockafellow | B48: ='Girls Reg'!$B$2 -> Henry Hudson | C48: ='Girls Reg'!C5 -> 84 | D48: ='Girls Reg'!D5 -> 87 | E48: ='Girls Reg'!E5 -> 90 | F48: 261 | G48: 90
A49: ='Girls Reg'!G4 -> Amelia Martinez | B49: ='Girls Reg'!$G$2 -> Lakewood | C49: ='Girls Reg'!H4 -> 80 | D49: ='Girls Reg'!I4 -> 82 | E49: ='Girls Reg'!J4 ->  | F49: 162 | G49: 82
A50: ='Girls Reg'!G24 -> Jenimya Holley | B50: ='Girls Reg'!$G$22 -> Bayonne | C50: ='Girls Reg'!H24 -> 61 | D50: ='Girls Reg'!I24 -> 68 | E50: ='Girls Reg'!J24 -> 82 | F50: 211 | G50: 82
A51: ='Girls Reg'!G6 -> Maria Huerta | B51: ='Girls Reg'!$G$2 -> Lakewood | C51: ='Girls Reg'!H6 -> 77 | D51: ='Girls Reg'!I6 ->  | E51: ='Girls Reg'!J6 ->  | F51: 77 | G51: 77
A52: ='Girls Reg'!G25 -> Jenna Jozwiak | B52: ='Girls Reg'!$G$22 -> Bayonne | C52: ='Girls Reg'!H25 -> 65 | D52: ='Girls Reg'!I25 -> 53 | E52: ='Girls Reg'!J25 -> 58 | F52: 176 | G52: 65
A53: ='Girls Reg'!G8 -> Daniela Cualutle | B53: ='Girls Reg'!$G$2 -> Lakewood | C53: ='Girls Reg'!H8 ->  | D53: ='Girls Reg'!I8 ->  | E53: ='Girls Reg'!J8 -> 65 | F53: 65 | G53: 65
A54: ='Girls Reg'!G29 ->  | B54: ='Girls Reg'!$G$22 -> Bayonne | C54: ='Girls Reg'!H29 ->  | D54: ='Girls Reg'!I29 ->  | E54: ='Girls Reg'!J29 ->  | F54: 0 | G54: 0
A55: ='Girls Reg'!G38 -> Faith Coll | B55: ='Girls Reg'!$G$32 -> Middletown North | C55: ='Girls Reg'!H38 ->  | D55: ='Girls Reg'!I38 ->  | E55: ='Girls Reg'!J38 ->  | F55: 0 | G55: 0
A56: ='Girls Reg'!B38 ->  | B56: ='Girls Reg'!$B$32 -> Matawan | C56: ='Girls Reg'!C38 ->  | D56: ='Girls Reg'!D38 ->  | E56: ='Girls Reg'!E38 ->  | F56: 0 | G56: 0
A57: ='Girls Reg'!B48 -> Jessica Argentina | B57: ='Girls Reg'!$B$42 -> Keyport | C57: ='Girls Reg'!C48 ->  | D57: ='Girls Reg'!D48 ->  | E57: ='Girls Reg'!E48 ->  | F57: 0 | G57: 0
A58: ='Girls Reg'!B8 ->  | B58: ='Girls Reg'!$B$2 -> Henry Hudson | C58: ='Girls Reg'!C8 ->  | D58: ='Girls Reg'!D8 ->  | E58: ='Girls Reg'!E8 ->  | F58: 0 | G58: 0
A59: ='Girls Reg'!G28 ->  | B59: ='Girls Reg'!$G$22 -> Bayonne | C59: ='Girls Reg'!H28 ->  | D59: ='Girls Reg'!I28 ->  | E59: ='Girls Reg'!J28 ->  | F59: 0 | G59: 0
A60: ='Girls Reg'!G48 ->  | B60: ='Girls Reg'!$G$42 -> Roselle | C60: ='Girls Reg'!H48 ->  | D60: ='Girls Reg'!I48 ->  | E60: ='Girls Reg'!J48 ->  | F60: 0 | G60: 0
A61: ='Girls Reg'!G49 ->  | B61: ='Girls Reg'!$G$42 -> Roselle | C61: ='Girls Reg'!H49 ->  | D61: ='Girls Reg'!I49 ->  | E61: ='Girls Reg'!J49 ->  | F61: 0 | G61: 0
A62: ='Girls Reg'!G50 ->  | B62: ='Girls Reg'!$G$42 -> Roselle | C62: ='Girls Reg'!H50 ->  | D62: ='Girls Reg'!I50 ->  | E62: ='Girls Reg'!J50 ->  | F62: 0 | G62: 0
A63: ='Girls Reg'!B49 ->  | B63: ='Girls Reg'!$B$42 -> Keyport | C63: ='Girls Reg'!C49 ->  | D63: ='Girls Reg'!D49 ->  | E63: ='Girls Reg'!E49 ->  | F63: 0 | G63: 0
A64: ='Girls Reg'!B50 ->  | B64: ='Girls Reg'!$B$42 -> Keyport | C64: ='Girls Reg'!C50 ->  | D64: ='Girls Reg'!D50 ->  | E64: ='Girls Reg'!E50 ->  | F64: 0 | G64: 0
A65: ='Girls Reg'!B39 ->  | B65: ='Girls Reg'!$B$32 -> Matawan | C65: ='Girls Reg'!C39 ->  | D65: ='Girls Reg'!D39 ->  | E65: ='Girls Reg'!E39 ->  | F65: 0 | G65: 0
A66: ='Girls Reg'!B40 ->  | B66: ='Girls Reg'!$B$32 -> Matawan | C66: ='Girls Reg'!C40 ->  | D66: ='Girls Reg'!D40 ->  | E66: ='Girls Reg'!E40 ->  | F66: 0 | G66: 0
A67: ='Girls Reg'!G30 ->  | B67: ='Girls Reg'!$G$22 -> Bayonne | C67: ='Girls Reg'!H30 ->  | D67: ='Girls Reg'!I30 ->  | E67: ='Girls Reg'!J30 ->  | F67: 0 | G67: 0
A68: ='Girls Reg'!B28 ->  | B68: ='Girls Reg'!$B$22 -> Keansburg | C68: ='Girls Reg'!C28 ->  | D68: ='Girls Reg'!D28 ->  | E68: ='Girls Reg'!E28 ->  | F68: 0 | G68: 0
A69: ='Girls Reg'!B29 ->  | B69: ='Girls Reg'!$B$22 -> Keansburg | C69: ='Girls Reg'!C29 ->  | D69: ='Girls Reg'!D29 ->  | E69: ='Girls Reg'!E29 ->  | F69: 0 | G69: 0
A70: ='Girls Reg'!B30 ->  | B70: ='Girls Reg'!$B$22 -> Keansburg | C70: ='Girls Reg'!C30 ->  | D70: ='Girls Reg'!D30 ->  | E70: ='Girls Reg'!E30 ->  | F70: 0 | G70: 0
A71: ='Girls Reg'!G18 -> Zoe Konow | B71: ='Girls Reg'!$G$12 -> Ocean | C71: ='Girls Reg'!H18 ->  | D71: ='Girls Reg'!I18 ->  | E71: ='Girls Reg'!J18 ->  | F71: 0 | G71: 0
A72: ='Girls Reg'!G19 -> McKenzie Rainford | B72: ='Girls Reg'!$G$12 -> Ocean | C72: ='Girls Reg'!H19 ->  | D72: ='Girls Reg'!I19 ->  | E72: ='Girls Reg'!J19 ->  | F72: 0 | G72: 0
A73: ='Girls Reg'!G20 ->  | B73: ='Girls Reg'!$G$12 -> Ocean | C73: ='Girls Reg'!H20 ->  | D73: ='Girls Reg'!I20 ->  | E73: ='Girls Reg'!J20 ->  | F73: 0 | G73: 0
A74: ='Girls Reg'!B18 ->  | B74: ='Girls Reg'!$B$12 -> SJV | C74: ='Girls Reg'!C18 ->  | D74: ='Girls Reg'!D18 ->  | E74: ='Girls Reg'!E18 ->  | F74: 0 | G74: 0
A75: ='Girls Reg'!B19 ->  | B75: ='Girls Reg'!$B$12 -> SJV | C75: ='Girls Reg'!C19 ->  | D75: ='Girls Reg'!D19 ->  | E75: ='Girls Reg'!E19 ->  | F75: 0 | G75: 0
A76: ='Girls Reg'!B20 ->  | B76: ='Girls Reg'!$B$12 -> SJV | C76: ='Girls Reg'!C20 ->  | D76: ='Girls Reg'!D20 ->  | E76: ='Girls Reg'!E20 ->  | F76: 0 | G76: 0
A77: ='Girls Reg'!G10 -> Giselle Martinez | B77: ='Girls Reg'!$G$2 -> Lakewood | C77: ='Girls Reg'!H10 ->  | D77: ='Girls Reg'!I10 ->  | E77: ='Girls Reg'!J10 ->  | F77: 0 | G77: 0
A78: ='Girls Reg'!B9 ->  | B78: ='Girls Reg'!$B$2 -> Henry Hudson | C78: ='Girls Reg'!C9 ->  | D78: ='Girls Reg'!D9 ->  | E78: ='Girls Reg'!E9 ->  | F78: 0 | G78: 0
A79: ='Girls Reg'!B10 ->  | B79: ='Girls Reg'!$B$2 -> Henry Hudson | C79: ='Girls Reg'!C10 ->  | D79: ='Girls Reg'!D10 ->  | E79: ='Girls Reg'!E10 ->  | F79: 0 | G79: 0
A80: ='Girls Reg'!G39 -> Sara Welsh | B80: ='Girls Reg'!$G$32 -> Middletown North | C80: ='Girls Reg'!H39 ->  | D80: ='Girls Reg'!I39 ->  | E80: ='Girls Reg'!J39 ->  | F80: 0 | G80: 0
A81: ='Girls Reg'!G40 -> Justice Buonsante | B81: ='Girls Reg'!$G$32 -> Middletown North | C81: ='Girls Reg'!H40 ->  | D81: ='Girls Reg'!I40 ->  | E81: ='Girls Reg'!J40 ->  | F81: 0 | G81: 0
A82: ='Girls Reg'!G63 ->  | B82: ='Girls Reg'!$G$62 ->  | C82: ='Girls Reg'!H63 ->  | D82: ='Girls Reg'!I63 ->  | E82: ='Girls Reg'!J63 ->  | F82: 0 | G82: 0
A83: ='Girls Reg'!G54 ->  | B83: ='Girls Reg'!$G$52 ->  | C83: ='Girls Reg'!H54 ->  | D83: ='Girls Reg'!I54 ->  | E83: ='Girls Reg'!J54 ->  | F83: 0 | G83: 0
A84: ='Girls Reg'!G57 ->  | B84: ='Girls Reg'!$G$52 ->  | C84: ='Girls Reg'!H57 ->  | D84: ='Girls Reg'!I57 ->  | E84: ='Girls Reg'!J57 ->  | F84: 0 | G84: 0
A85: ='Girls Reg'!B57 ->  | B85: ='Girls Reg'!$B$52 ->  | C85: ='Girls Reg'!C57 ->  | D85: ='Girls Reg'!D57 ->  | E85: ='Girls Reg'!E57 ->  | F85: 0 | G85: 0
A86: ='Girls Reg'!G67 ->  | B86: ='Girls Reg'!$G$62 ->  | C86: ='Girls Reg'!H67 ->  | D86: ='Girls Reg'!I67 ->  | E86: ='Girls Reg'!J67 ->  | F86: 0 | G86: 0
A87: ='Girls Reg'!B56 ->  | B87: ='Girls Reg'!$B$52 ->  | C87: ='Girls Reg'!C56 ->  | D87: ='Girls Reg'!D56 ->  | E87: ='Girls Reg'!E56 ->  | F87: 0 | G87: 0
A88: ='Girls Reg'!B67 ->  | B88: ='Girls Reg'!$B$62 ->  | C88: ='Girls Reg'!C67 ->  | D88: ='Girls Reg'!D67 ->  | E88: ='Girls Reg'!E67 ->  | F88: 0 | G88: 0
A89: ='Girls Reg'!B66 ->  | B89: ='Girls Reg'!$B$62 ->  | C89: ='Girls Reg'!C66 ->  | D89: ='Girls Reg'!D66 ->  | E89: ='Girls Reg'!E66 ->  | F89: 0 | G89: 0
A90: ='Girls Reg'!B73 ->  | B90: ='Girls Reg'!$B$72 ->  | C90: ='Girls Reg'!C73 ->  | D90: ='Girls Reg'!D73 ->  | E90: ='Girls Reg'!E73 ->  | F90: 0 | G90: 0
A91: ='Girls Reg'!G56 ->  | B91: ='Girls Reg'!$G$52 ->  | C91: ='Girls Reg'!H56 ->  | D91: ='Girls Reg'!I56 ->  | E91: ='Girls Reg'!J56 ->  | F91: 0 | G91: 0
A92: ='Girls Reg'!G55 ->  | B92: ='Girls Reg'!$G$52 ->  | C92: ='Girls Reg'!H55 ->  | D92: ='Girls Reg'!I55 ->  | E92: ='Girls Reg'!J55 ->  | F92: 0 | G92: 0
A93: ='Girls Reg'!B76 ->  | B93: ='Girls Reg'!$B$72 ->  | C93: ='Girls Reg'!C76 ->  | D93: ='Girls Reg'!D76 ->  | E93: ='Girls Reg'!E76 ->  | F93: 0 | G93: 0
A94: ='Girls Reg'!B64 ->  | B94: ='Girls Reg'!$B$62 ->  | C94: ='Girls Reg'!C64 ->  | D94: ='Girls Reg'!D64 ->  | E94: ='Girls Reg'!E64 ->  | F94: 0 | G94: 0
A95: ='Girls Reg'!B54 ->  | B95: ='Girls Reg'!$B$52 ->  | C95: ='Girls Reg'!C54 ->  | D95: ='Girls Reg'!D54 ->  | E95: ='Girls Reg'!E54 ->  | F95: 0 | G95: 0
A96: ='Girls Reg'!B74 ->  | B96: ='Girls Reg'!$B$72 ->  | C96: ='Girls Reg'!C74 ->  | D96: ='Girls Reg'!D74 ->  | E96: ='Girls Reg'!E74 ->  | F96: 0 | G96: 0
A97: ='Girls Reg'!G53 ->  | B97: ='Girls Reg'!$G$52 ->  | C97: ='Girls Reg'!H53 ->  | D97: ='Girls Reg'!I53 ->  | E97: ='Girls Reg'!J53 ->  | F97: 0 | G97: 0
A98: ='Girls Reg'!B63 ->  | B98: ='Girls Reg'!$B$62 ->  | C98: ='Girls Reg'!C63 ->  | D98: ='Girls Reg'!D63 ->  | E98: ='Girls Reg'!E63 ->  | F98: 0 | G98: 0
A99: ='Girls Reg'!G65 ->  | B99: ='Girls Reg'!$G$62 ->  | C99: ='Girls Reg'!H65 ->  | D99: ='Girls Reg'!I65 ->  | E99: ='Girls Reg'!J65 ->  | F99: 0 | G99: 0
A100: ='Girls Reg'!B77 ->  | B100: ='Girls Reg'!$B$72 ->  | C100: ='Girls Reg'!C77 ->  | D100: ='Girls Reg'!D77 ->  | E100: ='Girls Reg'!E77 ->  | F100: 0 | G100: 0
A101: ='Girls Reg'!B75 ->  | B101: ='Girls Reg'!$B$72 ->  | C101: ='Girls Reg'!C75 ->  | D101: ='Girls Reg'!D75 ->  | E101: ='Girls Reg'!E75 ->  | F101: 0 | G101: 0
A102: ='Girls Reg'!B58 ->  | B102: ='Girls Reg'!$B$52 ->  | C102: ='Girls Reg'!C58 ->  | D102: ='Girls Reg'!D58 ->  | E102: ='Girls Reg'!E58 ->  | F102: 0 | G102: 0
A103: ='Girls Reg'!B55 ->  | B103: ='Girls Reg'!$B$52 ->  | C103: ='Girls Reg'!C55 ->  | D103: ='Girls Reg'!D55 ->  | E103: ='Girls Reg'!E55 ->  | F103: 0 | G103: 0
A104: ='Girls Reg'!B68 ->  | B104: ='Girls Reg'!$B$62 ->  | C104: ='Girls Reg'!C68 ->  | D104: ='Girls Reg'!D68 ->  | E104: ='Girls Reg'!E68 ->  | F104: 0 | G104: 0
A105: ='Girls Reg'!B65 ->  | B105: ='Girls Reg'!$B$62 ->  | C105: ='Girls Reg'!C65 ->  | D105: ='Girls Reg'!D65 ->  | E105: ='Girls Reg'!E65 ->  | F105: 0 | G105: 0
A106: ='Girls Reg'!G64 ->  | B106: ='Girls Reg'!$G$62 ->  | C106: ='Girls Reg'!H64 ->  | D106: ='Girls Reg'!I64 ->  | E106: ='Girls Reg'!J64 ->  | F106: 0 | G106: 0
A107: ='Girls Reg'!B53 ->  | B107: ='Girls Reg'!$B$52 ->  | C107: ='Girls Reg'!C53 ->  | D107: ='Girls Reg'!D53 ->  | E107: ='Girls Reg'!E53 ->  | F107: 0 | G107: 0
A108: ='Girls Reg'!B59 ->  | B108: ='Girls Reg'!$B$52 ->  | C108: ='Girls Reg'!C59 ->  | D108: ='Girls Reg'!D59 ->  | E108: ='Girls Reg'!E59 ->  | F108: 0 | G108: 0
A109: ='Girls Reg'!B60 ->  | B109: ='Girls Reg'!$B$52 ->  | C109: ='Girls Reg'!C60 ->  | D109: ='Girls Reg'!D60 ->  | E109: ='Girls Reg'!E60 ->  | F109: 0 | G109: 0
A110: ='Girls Reg'!G58 ->  | B110: ='Girls Reg'!$G$52 ->  | C110: ='Girls Reg'!H58 ->  | D110: ='Girls Reg'!I58 ->  | E110: ='Girls Reg'!J58 ->  | F110: 0 | G110: 0
A111: ='Girls Reg'!G59 ->  | B111: ='Girls Reg'!$G$52 ->  | C111: ='Girls Reg'!H59 ->  | D111: ='Girls Reg'!I59 ->  | E111: ='Girls Reg'!J59 ->  | F111: 0 | G111: 0
A112: ='Girls Reg'!G60 ->  | B112: ='Girls Reg'!$G$52 ->  | C112: ='Girls Reg'!H60 ->  | D112: ='Girls Reg'!I60 ->  | E112: ='Girls Reg'!J60 ->  | F112: 0 | G112: 0
A113: ='Girls Reg'!B69 ->  | B113: ='Girls Reg'!$B$62 ->  | C113: ='Girls Reg'!C69 ->  | D113: ='Girls Reg'!D69 ->  | E113: ='Girls Reg'!E69 ->  | F113: 0 | G113: 0
A114: ='Girls Reg'!B70 ->  | B114: ='Girls Reg'!$B$62 ->  | C114: ='Girls Reg'!C70 ->  | D114: ='Girls Reg'!D70 ->  | E114: ='Girls Reg'!E70 ->  | F114: 0 | G114: 0
A115: ='Girls Reg'!G66 ->  | B115: ='Girls Reg'!$G$62 ->  | C115: ='Girls Reg'!H66 ->  | D115: ='Girls Reg'!I66 ->  | E115: ='Girls Reg'!J66 ->  | F115: 0 | G115: 0
A116: ='Girls Reg'!G68 ->  | B116: ='Girls Reg'!$G$62 ->  | C116: ='Girls Reg'!H68 ->  | D116: ='Girls Reg'!I68 ->  | E116: ='Girls Reg'!J68 ->  | F116: 0 | G116: 0
A117: ='Girls Reg'!G69 ->  | B117: ='Girls Reg'!$G$62 ->  | C117: ='Girls Reg'!H69 ->  | D117: ='Girls Reg'!I69 ->  | E117: ='Girls Reg'!J69 ->  | F117: 0 | G117: 0
A118: ='Girls Reg'!G70 ->  | B118: ='Girls Reg'!$G$62 ->  | C118: ='Girls Reg'!H70 ->  | D118: ='Girls Reg'!I70 ->  | E118: ='Girls Reg'!J70 ->  | F118: 0 | G118: 0
A119: ='Girls Reg'!B78 ->  | B119: ='Girls Reg'!$B$72 ->  | C119: ='Girls Reg'!C78 ->  | D119: ='Girls Reg'!D78 ->  | E119: ='Girls Reg'!E78 ->  | F119: 0 | G119: 0
A120: ='Girls Reg'!B79 ->  | B120: ='Girls Reg'!$B$72 ->  | C120: ='Girls Reg'!C79 ->  | D120: ='Girls Reg'!D79 ->  | E120: ='Girls Reg'!E79 ->  | F120: 0 | G120: 0
A121: ='Girls Reg'!B80 ->  | B121: ='Girls Reg'!$B$72 ->  | C121: ='Girls Reg'!C80 ->  | D121: ='Girls Reg'!D80 ->  | E121: ='Girls Reg'!E80 ->  | F121: 0 | G121: 0
A122: ='Girls Reg'!G73 ->  | B122: ='Girls Reg'!$G$72 ->  | C122: ='Girls Reg'!H73 ->  | D122: ='Girls Reg'!I73 ->  | E122: ='Girls Reg'!J73 ->  | F122: 0 | G122: 0
A123: ='Girls Reg'!G74 ->  | B123: ='Girls Reg'!$G$72 ->  | C123: ='Girls Reg'!H74 ->  | D123: ='Girls Reg'!I74 ->  | E123: ='Girls Reg'!J74 ->  | F123: 0 | G123: 0
A124: ='Girls Reg'!G75 ->  | B124: ='Girls Reg'!$G$72 ->  | C124: ='Girls Reg'!H75 ->  | D124: ='Girls Reg'!I75 ->  | E124: ='Girls Reg'!J75 ->  | F124: 0 | G124: 0
A125: ='Girls Reg'!G76 ->  | B125: ='Girls Reg'!$G$72 ->  | C125: ='Girls Reg'!H76 ->  | D125: ='Girls Reg'!I76 ->  | E125: ='Girls Reg'!J76 ->  | F125: 0 | G125: 0
A126: ='Girls Reg'!G77 ->  | B126: ='Girls Reg'!$G$72 ->  | C126: ='Girls Reg'!H77 ->  | D126: ='Girls Reg'!I77 ->  | E126: ='Girls Reg'!J77 ->  | F126: 0 | G126: 0
A127: ='Girls Reg'!G78 ->  | B127: ='Girls Reg'!$G$72 ->  | C127: ='Girls Reg'!H78 ->  | D127: ='Girls Reg'!I78 ->  | E127: ='Girls Reg'!J78 ->  | F127: 0 | G127: 0
A128: ='Girls Reg'!G79 ->  | B128: ='Girls Reg'!$G$72 ->  | C128: ='Girls Reg'!H79 ->  | D128: ='Girls Reg'!I79 ->  | E128: ='Girls Reg'!J79 ->  | F128: 0 | G128: 0
A129: ='Girls Reg'!G80 ->  | B129: ='Girls Reg'!$G$72 ->  | C129: ='Girls Reg'!H80 ->  | D129: ='Girls Reg'!I80 ->  | E129: ='Girls Reg'!J80 ->  | F129: 0 | G129: 0

Sheet Girls Ind. High Series
A1: Name | B1: School | C1: Game 1 | D1: Game 2 | E1: Game 3 | F1: Series | G1: High Game
A2: ='Girls Reg'!B33 -> Faith Smith | B2: ='Girls Reg'!$B$32 -> Matawan | C2: ='Girls Reg'!C33 -> 165 | D2: ='Girls Reg'!D33 -> 222 | E2: ='Girls Reg'!E33 -> 195 | F2: =SUM(C2:E2) -> 582 | G2: =MAX(C2:E2) -> 222
A3: ='Girls Reg'!B16 -> Caylei Hoffman | B3: ='Girls Reg'!$B$12 -> SJV | C3: ='Girls Reg'!C16 -> 186 | D3: ='Girls Reg'!D16 -> 168 | E3: ='Girls Reg'!E16 -> 222 | F3: 576 | G3: 222
A4: ='Girls Reg'!B37 -> Laura McConnon | B4: ='Girls Reg'!$B$32 -> Matawan | C4: ='Girls Reg'!C37 -> 167 | D4: ='Girls Reg'!D37 -> 204 | E4: ='Girls Reg'!E37 -> 148 | F4: 519 | G4: 204
A5: ='Girls Reg'!B46 -> Kimberly Kutschman | B5: ='Girls Reg'!$B$42 -> Keyport | C5: ='Girls Reg'!C46 -> 189 | D5: ='Girls Reg'!D46 -> 179 | E5: ='Girls Reg'!E46 -> 150 | F5: 518 | G5: 189
A6: ='Girls Reg'!B35 -> Katie Devoe | B6: ='Girls Reg'!$B$32 -> Matawan | C6: ='Girls Reg'!C35 -> 178 | D6: ='Girls Reg'!D35 -> 155 | E6: ='Girls Reg'!E35 -> 174 | F6: 507 | G6: 178
A7: ='Girls Reg'!G17 -> Casey Russomano | B7: ='Girls Reg'!$G$12 -> Ocean | C7: ='Girls Reg'!H17 -> 171 | D7: ='Girls Reg'!I17 -> 182 | E7: ='Girls Reg'!J17 -> 151 | F7: 504 | G7: 182
A8: ='Girls Reg'!B36 -> Kiernan McShane | B8: ='Girls Reg'!$B$32 -> Matawan | C8: ='Girls Reg'!C36 -> 237 | D8: ='Girls Reg'!D36 -> 112 | E8: ='Girls Reg'!E36 -> 133 | F8: 482 | G8: 237
A9: ='Girls Reg'!B17 -> Eliabeth Brogna | B9: ='Girls Reg'!$B$12 -> SJV | C9: ='Girls Reg'!C17 -> 168 | D9: ='Girls Reg'!D17 -> 156 | E9: ='Girls Reg'!E17 -> 155 | F9: 479 | G9: 168
A10: ='Girls Reg'!G36 -> Victora Trigg | B10: ='Girls Reg'!$G$32 -> Middletown North | C10: ='Girls Reg'!H36 -> 149 | D10: ='Girls Reg'!I36 -> 177 | E10: ='Girls Reg'!J36 -> 139 | F10: 465 | G10: 177
A11: ='Girls Reg'!G33 -> Ashley Guglielmo | B11: ='Girls Reg'!$G$32 -> Middletown North | C11: ='Girls Reg'!H33 -> 189 | D11: ='Girls Reg'!I33 -> 132 | E11: ='Girls Reg'!J33 -> 140 | F11: 461 | G11: 189
A12: ='Girls Reg'!G37 -> Dakota Zadroga | B12: ='Girls Reg'!$G$32 -> Middletown North | C12: ='Girls Reg'!H37 -> 118 | D12: ='Girls Reg'!I37 -> 171 | E12: ='Girls Reg'!J37 -> 172 | F12: 461 | G12: 172
A13: ='Girls Reg'!B27 -> Emily Frizell | B13: ='Girls Reg'!$B$22 -> Keansburg | C13: ='Girls Reg'!C27 -> 173 | D13: ='Girls Reg'!D27 -> 144 | E13: ='Girls Reg'!E27 -> 138 | F13: 455 | G13: 173
A14: ='Girls Reg'!B47 -> Emma Grabowski | B14: ='Girls Reg'!$B$42 -> Keyport | C14: ='Girls Reg'!C47 -> 144 | D14: ='Girls Reg'!D47 -> 131 | E14: ='Girls Reg'!E47 -> 148 | F14: 423 | G14: 148
A15: ='Girls Reg'!B34 -> Kaitlyn Knover | B15: ='Girls Reg'!$B$32 -> Matawan | C15: ='Girls Reg'!C34 -> 148 | D15: ='Girls Reg'!D34 -> 154 | E15: ='Girls Reg'!E34 -> 120 | F15: 422 | G15: 154
A16: ='Girls Reg'!G35 -> Taylor Hanser | B16: ='Girls Reg'!$G$32 -> Middletown North | C16: ='Girls Reg'!H35 -> 136 | D16: ='Girls Reg'!I35 -> 154 | E16: ='Girls Reg'!J35 -> 118 | F16: 408 | G16: 154
A17: ='Girls Reg'!G7 -> Luz Torres | B17: ='Girls Reg'!$G$2 -> Lakewood | C17: ='Girls Reg'!H7 -> 135 | D17: ='Girls Reg'!I7 -> 152 | E17: ='Girls Reg'!J7 -> 119 | F17: 406 | G17: 152
A18: ='Girls Reg'!B26 -> Rebecca Kain | B18: ='Girls Reg'!$B$22 -> Keansburg | C18: ='Girls Reg'!C26 -> 134 | D18: ='Girls Reg'!D26 -> 144 | E18: ='Girls Reg'!E26 -> 126 | F18: 404 | G18: 144
A19: ='Girls Reg'!G16 -> Chrissy Cundiff | B19: ='Girls Reg'!$G$12 -> Ocean | C19: ='Girls Reg'!H16 -> 107 | D19: ='Girls Reg'!I16 -> 119 | E19: ='Girls Reg'!J16 -> 172 | F19: 398 | G19: 172
A20: ='Girls Reg'!G13 -> Nora Abdelaziz | B20: ='Girls Reg'!$G$12 -> Ocean | C20: ='Girls Reg'!H13 -> 131 | D20: ='Girls Reg'!I13 -> 138 | E20: ='Girls Reg'!J13 -> 126 | F20: 395 | G20: 138
A21: ='Girls Reg'!B44 -> Madelyn Yale | B21: ='Girls Reg'!$B$42 -> Keyport | C21: ='Girls Reg'!C44 -> 127 | D21: ='Girls Reg'!D44 -> 148 | E21: ='Girls Reg'!E44 -> 118 | F21: 393 | G21: 148
A22: ='Girls Reg'!G34 -> Brenna Trevett | B22: ='Girls Reg'!$G$32 -> Middletown North | C22: ='Girls Reg'!H34 -> 132 | D22: ='Girls Reg'!I34 -> 120 | E22: ='Girls Reg'!J34 -> 137 | F22: 389 | G22: 137
A23: ='Girls Reg'!G14 -> Jazmia Ortiz | B23: ='Girls Reg'!$G$12 -> Ocean | C23: ='Girls Reg'!H14 -> 111 | D23: ='Girls Reg'!I14 -> 124 | E23: ='Girls Reg'!J14 -> 147 | F23: 382 | G23: 147
A24: ='Girls Reg'!B7 -> Makayla Roberts | B24: ='Girls Reg'!$B$2 -> Henry Hudson | C24: ='Girls Reg'!C7 -> 124 | D24: ='Girls Reg'!D7 -> 129 | E24: ='Girls Reg'!E7 -> 127 | F24: 380 | G24: 129
A25: ='Girls Reg'!B43 -> Madison Reynolds | B25: ='Girls Reg'!$B$42 -> Keyport | C25: ='Girls Reg'!C43 -> 147 | D25: ='Girls Reg'!D43 -> 121 | E25: ='Girls Reg'!E43 -> 110 | F25: 378 | G25: 147
A26: ='Girls Reg'!G45 -> Eamy Moluna | B26: ='Girls Reg'!$G$42 -> Roselle | C26: ='Girls Reg'!H45 -> 123 | D26: ='Girls Reg'!I45 -> 126 | E26: ='Girls Reg'!J45 -> 123 | F26: 372 | G26: 126
A27: ='Girls Reg'!B15 -> Mary McAvoy | B27: ='Girls Reg'!$B$12 -> SJV | C27: ='Girls Reg'!C15 -> 126 | D27: ='Girls Reg'!D15 -> 148 | E27: ='Girls Reg'!E15 -> 91 | F27: 365 | G27: 148
A28: ='Girls Reg'!B45 -> Chelsea Geyer | B28: ='Girls Reg'!$B$42 -> Keyport | C28: ='Girls Reg'!C45 -> 114 | D28: ='Girls Reg'!D45 -> 128 | E28: ='Girls Reg'!E45 -> 116 | F28: 358 | G28: 128
A29: ='Girls Reg'!G26 -> Brianne Peralta | B29: ='Girls Reg'!$G$22 -> Bayonne | C29: ='Girls Reg'!H26 -> 149 | D29: ='Girls Reg'!I26 -> 120 | E29: ='Girls Reg'!J26 -> 81 | F29: 350 | G29: 149
A30: ='Girls Reg'!G23 -> Lecia Williams | B30: ='Girls Reg'!$G$22 -> Bayonne | C30: ='Girls Reg'!H23 -> 126 | D30: ='Girls Reg'!I23 -> 101 | E30: ='Girls Reg'!J23 -> 118 | F30: 345 | G30: 126
A31: ='Girls Reg'!B14 -> Catherine O'Grady | B31: ='Girls Reg'!$B$12 -> SJV | C31: ='Girls Reg'!C14 -> 87 | D31: ='Girls Reg'!D14 -> 107 | E31: ='Girls Reg'!E14 -> 141 | F31: 335 | G31: 141
A32: ='Girls Reg'!B23 -> Amy Cieslik | B32: ='Girls Reg'!$B$22 -> Keansburg | C32: ='Girls Reg'!C23 -> 114 | D32: ='Girls Reg'!D23 -> 104 | E32: ='Girls Reg'!E23 -> 112 | F32: 330 | G32: 114
A33: ='Girls Reg'!G3 -> Yoselyn Montes | B33: ='Girls Reg'!$G$2 -> Lakewood | C33: ='Girls Reg'!H3 -> 95 | D33: ='Girls Reg'!I3 -> 130 | E33: ='Girls Reg'!J3 -> 105 | F33: 330 | G33: 130
A34: ='Girls Reg'!B13 -> Maggie Irizarry | B34: ='Girls Reg'!$B$12 -> SJV | C34: ='Girls Reg'!C13 -> 94 | D34: ='Girls Reg'!D13 -> 139 | E34: ='Girls Reg'!E13 -> 96 | F34: 329 | G34: 139
A35: ='Girls Reg'!B4 -> Orianna Nolan | B35: ='Girls Reg'!$B$2 -> Henry Hudson | C35: ='Girls Reg'!C4 -> 111 | D35: ='Girls Reg'!D4 -> 109 | E35: ='Girls Reg'!E4 -> 94 | F35: 314 | G35: 111
A36: ='Girls Reg'!G47 -> Daniela Villacorta | B36: ='Girls Reg'!$G$42 -> Roselle | C36: ='Girls Reg'!H47 -> 92 | D36: ='Girls Reg'!I47 -> 116 | E36: ='Girls Reg'!J47 -> 102 | F36: 310 | G36: 116
A37: ='Girls Reg'!G27 -> Victoria Cass | B37: ='Girls Reg'!$G$22 -> Bayonne | C37: ='Girls Reg'!H27 -> 95 | D37: ='Girls Reg'!I27 -> 102 | E37: ='Girls Reg'!J27 -> 113 | F37: 310 | G37: 113
A38: ='Girls Reg'!G44 -> Alexis Staten | B38: ='Girls Reg'!$G$42 -> Roselle | C38: ='Girls Reg'!H44 -> 117 | D38: ='Girls Reg'!I44 -> 118 | E38: ='Girls Reg'!J44 -> 74 | F38: 309 | G38: 118
A39: ='Girls Reg'!G5 -> Doreley Ruiz | B39: ='Girls Reg'!$G$2 -> Lakewood | C39: ='Girls Reg'!H5 -> 116 | D39: ='Girls Reg'!I5 -> 86 | E39: ='Girls Reg'!J5 -> 102 | F39: 304 | G39: 116
A40: ='Girls Reg'!G15 -> Erin Golej | B40: ='Girls Reg'!$G$12 -> Ocean | C40: ='Girls Reg'!H15 -> 79 | D40: ='Girls Reg'!I15 -> 107 | E40: ='Girls Reg'!J15 -> 109 | F40: 295 | G40: 109
A41: ='Girls Reg'!G43 -> Karla Torres | B41: ='Girls Reg'!$G$42 -> Roselle | C41: ='Girls Reg'!H43 -> 92 | D41: ='Girls Reg'!I43 -> 78 | E41: ='Girls Reg'!J43 -> 123 | F41: 293 | G41: 123
A42: ='Girls Reg'!B6 -> Claire Dodge | B42: ='Girls Reg'!$B$2 -> Henry Hudson | C42: ='Girls Reg'!C6 -> 84 | D42: ='Girls Reg'!D6 -> 116 | E42: ='Girls Reg'!E6 -> 90 | F42: 290 | G42: 116
A43: ='Girls Reg'!B5 -> Julia Rockafellow | B43: ='Girls Reg'!$B$2 -> Henry Hudson | C43: ='Girls Reg'!C5 -> 84 | D43: ='Girls Reg'!D5 -> 87 | E43: ='Girls Reg'!E5 -> 90 | F43: 261 | G43: 90
A44: ='Girls Reg'!B25 -> Ariella Zambrano | B44: ='Girls Reg'!$B$22 -> Keansburg | C44: ='Girls Reg'!C25 -> 77 | D44: ='Girls Reg'!D25 -> 85 | E44: ='Girls Reg'!E25 -> 91 | F44: 253 | G44: 91
A45: ='Girls Reg'!G46 -> Synai Murray | B45: ='Girls Reg'!$G$42 -> Roselle | C45: ='Girls Reg'!H46 -> 57 | D45: ='Girls Reg'!I46 -> 90 | E45: ='Girls Reg'!J46 -> 94 | F45: 241 | G45: 94
A46: ='Girls Reg'!B24 -> Claire Brogan | B46: ='Girls Reg'!$B$22 -> Keansburg | C46: ='Girls Reg'!C24 -> 104 | D46: ='Girls Reg'!D24 -> 73 | E46: ='Girls Reg'!E24 -> 60 | F46: 237 | G46: 104
A47: ='Girls Reg'!B3 -> Alina Souza | B47: ='Girls Reg'!$B$2 -> Henry Hudson | C47: ='Girls Reg'!C3 -> 92 | D47: ='Girls Reg'!D3 -> 64 | E47: ='Girls Reg'!E3 -> 74 | F47: 230 | G47: 92
A48: ='Girls Reg'!G24 -> Jenimya Holley | B48: ='Girls Reg'!$G$22 -> Bayonne | C48: ='Girls Reg'!H24 -> 61 | D48: ='Girls Reg'!I24 -> 68 | E48: ='Girls Reg'!J24 -> 82 | F48: 211 | G48: 82
A49: ='Girls Reg'!G9 -> Areli Valencia | B49: ='Girls Reg'!$G$2 -> Lakewood | C49: ='Girls Reg'!H9 ->  | D49: ='Girls Reg'!I9 -> 108 | E49: ='Girls Reg'!J9 -> 80 | F49: 188 | G49: 108
A50: ='Girls Reg'!G25 -> Jenna Jozwiak | B50: ='Girls Reg'!$G$22 -> Bayonne | C50: ='Girls Reg'!H25 -> 65 | D50: ='Girls Reg'!I25 -> 53 | E50: ='Girls Reg'!J25 -> 58 | F50: 176 | G50: 65
A51: ='Girls Reg'!G4 -> Amelia Martinez | B51: ='Girls Reg'!$G$2 -> Lakewood | C51: ='Girls Reg'!H4 -> 80 | D51: ='Girls Reg'!I4 -> 82 | E51: ='Girls Reg'!J4 ->  | F51: 162 | G51: 82
A52: ='Girls Reg'!G6 -> Maria Huerta | B52: ='Girls Reg'!$G$2 -> Lakewood | C52: ='Girls Reg'!H6 -> 77 | D52: ='Girls Reg'!I6 ->  | E52: ='Girls Reg'!J6 ->  | F52: 77 | G52: 77
A53: ='Girls Reg'!G8 -> Daniela Cualutle | B53: ='Girls Reg'!$G$2 -> Lakewood | C53: ='Girls Reg'!H8 ->  | D53: ='Girls Reg'!I8 ->  | E53: ='Girls Reg'!J8 -> 65 | F53: 65 | G53: 65
A54: ='Girls Reg'!G38 -> Faith Coll | B54: ='Girls Reg'!$G$32 -> Middletown North | C54: ='Girls Reg'!H38 ->  | D54: ='Girls Reg'!I38 ->  | E54: ='Girls Reg'!J38 ->  | F54: 0 | G54: 0
A55: ='Girls Reg'!G29 ->  | B55: ='Girls Reg'!$G$22 -> Bayonne | C55: ='Girls Reg'!H29 ->  | D55: ='Girls Reg'!I29 ->  | E55: ='Girls Reg'!J29 ->  | F55: 0 | G55: 0
A56: ='Girls Reg'!B38 ->  | B56: ='Girls Reg'!$B$32 -> Matawan | C56: ='Girls Reg'!C38 ->  | D56: ='Girls Reg'!D38 ->  | E56: ='Girls Reg'!E38 ->  | F56: 0 | G56: 0
A57: ='Girls Reg'!B48 -> Jessica Argentina | B57: ='Girls Reg'!$B$42 -> Keyport | C57: ='Girls Reg'!C48 ->  | D57: ='Girls Reg'!D48 ->  | E57: ='Girls Reg'!E48 ->  | F57: 0 | G57: 0
A58: ='Girls Reg'!B8 ->  | B58: ='Girls Reg'!$B$2 -> Henry Hudson | C58: ='Girls Reg'!C8 ->  | D58: ='Girls Reg'!D8 ->  | E58: ='Girls Reg'!E8 ->  | F58: 0 | G58: 0
A59: ='Girls Reg'!G28 ->  | B59: ='Girls Reg'!$G$22 -> Bayonne | C59: ='Girls Reg'!H28 ->  | D59: ='Girls Reg'!I28 ->  | E59: ='Girls Reg'!J28 ->  | F59: 0 | G59: 0
A60: ='Girls Reg'!G63 ->  | B60: ='Girls Reg'!$G$62 ->  | C60: ='Girls Reg'!H63 ->  | D60: ='Girls Reg'!I63 ->  | E60: ='Girls Reg'!J63 ->  | F60: 0 | G60: 0
A61: ='Girls Reg'!G67 ->  | B61: ='Girls Reg'!$G$62 ->  | C61: ='Girls Reg'!H67 ->  | D61: ='Girls Reg'!I67 ->  | E61: ='Girls Reg'!J67 ->  | F61: 0 | G61: 0
A62: ='Girls Reg'!G57 ->  | B62: ='Girls Reg'!$G$52 ->  | C62: ='Girls Reg'!H57 ->  | D62: ='Girls Reg'!I57 ->  | E62: ='Girls Reg'!J57 ->  | F62: 0 | G62: 0
A63: ='Girls Reg'!B56 ->  | B63: ='Girls Reg'!$B$52 ->  | C63: ='Girls Reg'!C56 ->  | D63: ='Girls Reg'!D56 ->  | E63: ='Girls Reg'!E56 ->  | F63: 0 | G63: 0
A64: ='Girls Reg'!B76 ->  | B64: ='Girls Reg'!$B$72 ->  | C64: ='Girls Reg'!C76 ->  | D64: ='Girls Reg'!D76 ->  | E64: ='Girls Reg'!E76 ->  | F64: 0 | G64: 0
A65: ='Girls Reg'!G54 ->  | B65: ='Girls Reg'!$G$52 ->  | C65: ='Girls Reg'!H54 ->  | D65: ='Girls Reg'!I54 ->  | E65: ='Girls Reg'!J54 ->  | F65: 0 | G65: 0
A66: ='Girls Reg'!B57 ->  | B66: ='Girls Reg'!$B$52 ->  | C66: ='Girls Reg'!C57 ->  | D66: ='Girls Reg'!D57 ->  | E66: ='Girls Reg'!E57 ->  | F66: 0 | G66: 0
A67: ='Girls Reg'!B67 ->  | B67: ='Girls Reg'!$B$62 ->  | C67: ='Girls Reg'!C67 ->  | D67: ='Girls Reg'!D67 ->  | E67: ='Girls Reg'!E67 ->  | F67: 0 | G67: 0
A68: ='Girls Reg'!B66 ->  | B68: ='Girls Reg'!$B$62 ->  | C68: ='Girls Reg'!C66 ->  | D68: ='Girls Reg'!D66 ->  | E68: ='Girls Reg'!E66 ->  | F68: 0 | G68: 0
A69: ='Girls Reg'!G55 ->  | B69: ='Girls Reg'!$G$52 ->  | C69: ='Girls Reg'!H55 ->  | D69: ='Girls Reg'!I55 ->  | E69: ='Girls Reg'!J55 ->  | F69: 0 | G69: 0
A70: ='Girls Reg'!G56 ->  | B70: ='Girls Reg'!$G$52 ->  | C70: ='Girls Reg'!H56 ->  | D70: ='Girls Reg'!I56 ->  | E70: ='Girls Reg'!J56 ->  | F70: 0 | G70: 0
A71: ='Girls Reg'!B63 ->  | B71: ='Girls Reg'!$B$62 ->  | C71: ='Girls Reg'!C63 ->  | D71: ='Girls Reg'!D63 ->  | E71: ='Girls Reg'!E63 ->  | F71: 0 | G71: 0
A72: ='Girls Reg'!B74 ->  | B72: ='Girls Reg'!$B$72 ->  | C72: ='Girls Reg'!C74 ->  | D72: ='Girls Reg'!D74 ->  | E72: ='Girls Reg'!E74 ->  | F72: 0 | G72: 0
A73: ='Girls Reg'!B54 ->  | B73: ='Girls Reg'!$B$52 ->  | C73: ='Girls Reg'!C54 ->  | D73: ='Girls Reg'!D54 ->  | E73: ='Girls Reg'!E54 ->  | F73: 0 | G73: 0
A74: ='Girls Reg'!G65 ->  | B74: ='Girls Reg'!$G$62 ->  | C74: ='Girls Reg'!H65 ->  | D74: ='Girls Reg'!I65 ->  | E74: ='Girls Reg'!J65 ->  | F74: 0 | G74: 0
A75: ='Girls Reg'!G53 ->  | B75: ='Girls Reg'!$G$52 ->  | C75: ='Girls Reg'!H53 ->  | D75: ='Girls Reg'!I53 ->  | E75: ='Girls Reg'!J53 ->  | F75: 0 | G75: 0
A76: ='Girls Reg'!B64 ->  | B76: ='Girls Reg'!$B$62 ->  | C76: ='Girls Reg'!C64 ->  | D76: ='Girls Reg'!D64 ->  | E76: ='Girls Reg'!E64 ->  | F76: 0 | G76: 0
A77: ='Girls Reg'!B55 ->  | B77: ='Girls Reg'!$B$52 ->  | C77: ='Girls Reg'!C55 ->  | D77: ='Girls Reg'!D55 ->  | E77: ='Girls Reg'!E55 ->  | F77: 0 | G77: 0
A78: ='Girls Reg'!B77 ->  | B78: ='Girls Reg'!$B$72 ->  | C78: ='Girls Reg'!C77 ->  | D78: ='Girls Reg'!D77 ->  | E78: ='Girls Reg'!E77 ->  | F78: 0 | G78: 0
A79: ='Girls Reg'!B75 ->  | B79: ='Girls Reg'!$B$72 ->  | C79: ='Girls Reg'!C75 ->  | D79: ='Girls Reg'!D75 ->  | E79: ='Girls Reg'!E75 ->  | F79: 0 | G79: 0
A80: ='Girls Reg'!B73 ->  | B80: ='Girls Reg'!$B$72 ->  | C80: ='Girls Reg'!C73 ->  | D80: ='Girls Reg'!D73 ->  | E80: ='Girls Reg'!E73 ->  | F80: 0 | G80: 0
A81: ='Girls Reg'!G64 ->  | B81: ='Girls Reg'!$G$62 ->  | C81: ='Girls Reg'!H64 ->  | D81: ='Girls Reg'!I64 ->  | E81: ='Girls Reg'!J64 ->  | F81: 0 | G81: 0
A82: ='Girls Reg'!B58 ->  | B82: ='Girls Reg'!$B$52 ->  | C82: ='Girls Reg'!C58 ->  | D82: ='Girls Reg'!D58 ->  | E82: ='Girls Reg'!E58 ->  | F82: 0 | G82: 0
A83: ='Girls Reg'!B65 ->  | B83: ='Girls Reg'!$B$62 ->  | C83: ='Girls Reg'!C65 ->  | D83: ='Girls Reg'!D65 ->  | E83: ='Girls Reg'!E65 ->  | F83: 0 | G83: 0
A84: ='Girls Reg'!B68 ->  | B84: ='Girls Reg'!$B$62 ->  | C84: ='Girls Reg'!C68 ->  | D84: ='Girls Reg'!D68 ->  | E84: ='Girls Reg'!E68 ->  | F84: 0 | G84: 0
A85: ='Girls Reg'!B53 ->  | B85: ='Girls Reg'!$B$52 ->  | C85: ='Girls Reg'!C53 ->  | D85: ='Girls Reg'!D53 ->  | E85: ='Girls Reg'!E53 ->  | F85: 0 | G85: 0
A86: ='Girls Reg'!B9 ->  | B86: ='Girls Reg'!$B$2 -> Henry Hudson | C86: ='Girls Reg'!C9 ->  | D86: ='Girls Reg'!D9 ->  | E86: ='Girls Reg'!E9 ->  | F86: 0 | G86: 0
A87: ='Girls Reg'!B10 ->  | B87: ='Girls Reg'!$B$2 -> Henry Hudson | C87: ='Girls Reg'!C10 ->  | D87: ='Girls Reg'!D10 ->  | E87: ='Girls Reg'!E10 ->  | F87: 0 | G87: 0
A88: ='Girls Reg'!G10 -> Giselle Martinez | B88: ='Girls Reg'!$G$2 -> Lakewood | C88: ='Girls Reg'!H10 ->  | D88: ='Girls Reg'!I10 ->  | E88: ='Girls Reg'!J10 ->  | F88: 0 | G88: 0
A89: ='Girls Reg'!B18 ->  | B89: ='Girls Reg'!$B$12 -> SJV | C89: ='Girls Reg'!C18 ->  | D89: ='Girls Reg'!D18 ->  | E89: ='Girls Reg'!E18 ->  | F89: 0 | G89: 0
A90: ='Girls Reg'!B19 ->  | B90: ='Girls Reg'!$B$12 -> SJV | C90: ='Girls Reg'!C19 ->  | D90: ='Girls Reg'!D19 ->  | E90: ='Girls Reg'!E19 ->  | F90: 0 | G90: 0
A91: ='Girls Reg'!B20 ->  | B91: ='Girls Reg'!$B$12 -> SJV | C91: ='Girls Reg'!C20 ->  | D91: ='Girls Reg'!D20 ->  | E91: ='Girls Reg'!E20 ->  | F91: 0 | G91: 0
A92: ='Girls Reg'!G18 -> Zoe Konow | B92: ='Girls Reg'!$G$12 -> Ocean | C92: ='Girls Reg'!H18 ->  | D92: ='Girls Reg'!I18 ->  | E92: ='Girls Reg'!J18 ->  | F92: 0 | G92: 0
A93: ='Girls Reg'!G19 -> McKenzie Rainford | B93: ='Girls Reg'!$G$12 -> Ocean | C93: ='Girls Reg'!H19 ->  | D93: ='Girls Reg'!I19 ->  | E93: ='Girls Reg'!J19 ->  | F93: 0 | G93: 0
A94: ='Girls Reg'!G20 ->  | B94: ='Girls Reg'!$G$12 -> Ocean | C94: ='Girls Reg'!H20 ->  | D94: ='Girls Reg'!I20 ->  | E94: ='Girls Reg'!J20 ->  | F94: 0 | G94: 0
A95: ='Girls Reg'!B28 ->  | B95: ='Girls Reg'!$B$22 -> Keansburg | C95: ='Girls Reg'!C28 ->  | D95: ='Girls Reg'!D28 ->  | E95: ='Girls Reg'!E28 ->  | F95: 0 | G95: 0
A96: ='Girls Reg'!B29 ->  | B96: ='Girls Reg'!$B$22 -> Keansburg | C96: ='Girls Reg'!C29 ->  | D96: ='Girls Reg'!D29 ->  | E96: ='Girls Reg'!E29 ->  | F96: 0 | G96: 0
A97: ='Girls Reg'!B30 ->  | B97: ='Girls Reg'!$B$22 -> Keansburg | C97: ='Girls Reg'!C30 ->  | D97: ='Girls Reg'!D30 ->  | E97: ='Girls Reg'!E30 ->  | F97: 0 | G97: 0
A98: ='Girls Reg'!G30 ->  | B98: ='Girls Reg'!$G$22 -> Bayonne | C98: ='Girls Reg'!H30 ->  | D98: ='Girls Reg'!I30 ->  | E98: ='Girls Reg'!J30 ->  | F98: 0 | G98: 0
A99: ='Girls Reg'!B39 ->  | B99: ='Girls Reg'!$B$32 -> Matawan | C99: ='Girls Reg'!C39 ->  | D99: ='Girls Reg'!D39 ->  | E99: ='Girls Reg'!E39 ->  | F99: 0 | G99: 0
A100: ='Girls Reg'!B40 ->  | B100: ='Girls Reg'!$B$32 -> Matawan | C100: ='Girls Reg'!C40 ->  | D100: ='Girls Reg'!D40 ->  | E100: ='Girls Reg'!E40 ->  | F100: 0 | G100: 0
A101: ='Girls Reg'!G39 -> Sara Welsh | B101: ='Girls Reg'!$G$32 -> Middletown North | C101: ='Girls Reg'!H39 ->  | D101: ='Girls Reg'!I39 ->  | E101: ='Girls Reg'!J39 ->  | F101: 0 | G101: 0
A102: ='Girls Reg'!G40 -> Justice Buonsante | B102: ='Girls Reg'!$G$32 -> Middletown North | C102: ='Girls Reg'!H40 ->  | D102: ='Girls Reg'!I40 ->  | E102: ='Girls Reg'!J40 ->  | F102: 0 | G102: 0
A103: ='Girls Reg'!B49 ->  | B103: ='Girls Reg'!$B$42 -> Keyport | C103: ='Girls Reg'!C49 ->  | D103: ='Girls Reg'!D49 ->  | E103: ='Girls Reg'!E49 ->  | F103: 0 | G103: 0
A104: ='Girls Reg'!B50 ->  | B104: ='Girls Reg'!$B$42 -> Keyport | C104: ='Girls Reg'!C50 ->  | D104: ='Girls Reg'!D50 ->  | E104: ='Girls Reg'!E50 ->  | F104: 0 | G104: 0
A105: ='Girls Reg'!G48 ->  | B105: ='Girls Reg'!$G$42 -> Roselle | C105: ='Girls Reg'!H48 ->  | D105: ='Girls Reg'!I48 ->  | E105: ='Girls Reg'!J48 ->  | F105: 0 | G105: 0
A106: ='Girls Reg'!G49 ->  | B106: ='Girls Reg'!$G$42 -> Roselle | C106: ='Girls Reg'!H49 ->  | D106: ='Girls Reg'!I49 ->  | E106: ='Girls Reg'!J49 ->  | F106: 0 | G106: 0
A107: ='Girls Reg'!G50 ->  | B107: ='Girls Reg'!$G$42 -> Roselle | C107: ='Girls Reg'!H50 ->  | D107: ='Girls Reg'!I50 ->  | E107: ='Girls Reg'!J50 ->  | F107: 0 | G107: 0
A108: ='Girls Reg'!B59 ->  | B108: ='Girls Reg'!$B$52 ->  | C108: ='Girls Reg'!C59 ->  | D108: ='Girls Reg'!D59 ->  | E108: ='Girls Reg'!E59 ->  | F108: 0 | G108: 0
A109: ='Girls Reg'!B60 ->  | B109: ='Girls Reg'!$B$52 ->  | C109: ='Girls Reg'!C60 ->  | D109: ='Girls Reg'!D60 ->  | E109: ='Girls Reg'!E60 ->  | F109: 0 | G109: 0
A110: ='Girls Reg'!G58 ->  | B110: ='Girls Reg'!$G$52 ->  | C110: ='Girls Reg'!H58 ->  | D110: ='Girls Reg'!I58 ->  | E110: ='Girls Reg'!J58 ->  | F110: 0 | G110: 0
A111: ='Girls Reg'!G59 ->  | B111: ='Girls Reg'!$G$52 ->  | C111: ='Girls Reg'!H59 ->  | D111: ='Girls Reg'!I59 ->  | E111: ='Girls Reg'!J59 ->  | F111: 0 | G111: 0
A112: ='Girls Reg'!G60 ->  | B112: ='Girls Reg'!$G$52 ->  | C112: ='Girls Reg'!H60 ->  | D112: ='Girls Reg'!I60 ->  | E112: ='Girls Reg'!J60 ->  | F112: 0 | G112: 0
A113: ='Girls Reg'!B69 ->  | B113: ='Girls Reg'!$B$62 ->  | C113: ='Girls Reg'!C69 ->  | D113: ='Girls Reg'!D69 ->  | E113: ='Girls Reg'!E69 ->  | F113: 0 | G113: 0
A114: ='Girls Reg'!B70 ->  | B114: ='Girls Reg'!$B$62 ->  | C114: ='Girls Reg'!C70 ->  | D114: ='Girls Reg'!D70 ->  | E114: ='Girls Reg'!E70 ->  | F114: 0 | G114: 0
A115: ='Girls Reg'!G66 ->  | B115: ='Girls Reg'!$G$62 ->  | C115: ='Girls Reg'!H66 ->  | D115: ='Girls Reg'!I66 ->  | E115: ='Girls Reg'!J66 ->  | F115: 0 | G115: 0
A116: ='Girls Reg'!G68 ->  | B116: ='Girls Reg'!$G$62 ->  | C116: ='Girls Reg'!H68 ->  | D116: ='Girls Reg'!I68 ->  | E116: ='Girls Reg'!J68 ->  | F116: 0 | G116: 0
A117: ='Girls Reg'!G69 ->  | B117: ='Girls Reg'!$G$62 ->  | C117: ='Girls Reg'!H69 ->  | D117: ='Girls Reg'!I69 ->  | E117: ='Girls Reg'!J69 ->  | F117: 0 | G117: 0
A118: ='Girls Reg'!G70 ->  | B118: ='Girls Reg'!$G$62 ->  | C118: ='Girls Reg'!H70 ->  | D118: ='Girls Reg'!I70 ->  | E118: ='Girls Reg'!J70 ->  | F118: 0 | G118: 0
A119: ='Girls Reg'!B78 ->  | B119: ='Girls Reg'!$B$72 ->  | C119: ='Girls Reg'!C78 ->  | D119: ='Girls Reg'!D78 ->  | E119: ='Girls Reg'!E78 ->  | F119: 0 | G119: 0
A120: ='Girls Reg'!B79 ->  | B120: ='Girls Reg'!$B$72 ->  | C120: ='Girls Reg'!C79 ->  | D120: ='Girls Reg'!D79 ->  | E120: ='Girls Reg'!E79 ->  | F120: 0 | G120: 0
A121: ='Girls Reg'!B80 ->  | B121: ='Girls Reg'!$B$72 ->  | C121: ='Girls Reg'!C80 ->  | D121: ='Girls Reg'!D80 ->  | E121: ='Girls Reg'!E80 ->  | F121: 0 | G121: 0
A122: ='Girls Reg'!G73 ->  | B122: ='Girls Reg'!$G$72 ->  | C122: ='Girls Reg'!H73 ->  | D122: ='Girls Reg'!I73 ->  | E122: ='Girls Reg'!J73 ->  | F122: 0 | G122: 0
A123: ='Girls Reg'!G74 ->  | B123: ='Girls Reg'!$G$72 ->  | C123: ='Girls Reg'!H74 ->  | D123: ='Girls Reg'!I74 ->  | E123: ='Girls Reg'!J74 ->  | F123: 0 | G123: 0
A124: ='Girls Reg'!G75 ->  | B124: ='Girls Reg'!$G$72 ->  | C124: ='Girls Reg'!H75 ->  | D124: ='Girls Reg'!I75 ->  | E124: ='Girls Reg'!J75 ->  | F124: 0 | G124: 0
A125: ='Girls Reg'!G76 ->  | B125: ='Girls Reg'!$G$72 ->  | C125: ='Girls Reg'!H76 ->  | D125: ='Girls Reg'!I76 ->  | E125: ='Girls Reg'!J76 ->  | F125: 0 | G125: 0
A126: ='Girls Reg'!G77 ->  | B126: ='Girls Reg'!$G$72 ->  | C126: ='Girls Reg'!H77 ->  | D126: ='Girls Reg'!I77 ->  | E126: ='Girls Reg'!J77 ->  | F126: 0 | G126: 0
A127: ='Girls Reg'!G78 ->  | B127: ='Girls Reg'!$G$72 ->  | C127: ='Girls Reg'!H78 ->  | D127: ='Girls Reg'!I78 ->  | E127: ='Girls Reg'!J78 ->  | F127: 0 | G127: 0
A128: ='Girls Reg'!G79 ->  | B128: ='Girls Reg'!$G$72 ->  | C128: ='Girls Reg'!H79 ->  | D128: ='Girls Reg'!I79 ->  | E128: ='Girls Reg'!J79 ->  | F128: 0 | G128: 0
A129: ='Girls Reg'!G80 ->  | B129: ='Girls Reg'!$G$72 ->  | C129: ='Girls Reg'!H80 ->  | D129: ='Girls Reg'!I80 ->  | E129: ='Girls Reg'!J80 ->  | F129: 0 | G129: 0

Sheet Girls Totals
A1: Place | B1: School | C1: Game 1 | D1: Game 2 | E1: Sub | F1: Game 3 | G1: Total
A2: 1 | B2: ='Girls Reg'!$B$32 -> Matawan | C2: ='Girls Reg'!C41 -> 895 | D2: ='Girls Reg'!D41 -> 847 | E2: =SUM(C2:D2) -> 1742 | F2: ='Girls Reg'!E41 -> 770 | G2: =SUM(E2:F2) -> 2512
A3: 2 | B3: ='Girls Reg'!$G$32 -> Middletown North | C3: ='Girls Reg'!H41 -> 724 | D3: ='Girls Reg'!I41 -> 754 | E3: 1478 | F3: ='Girls Reg'!J41 -> 706 | G3: 2184
A4: 3 | B4: ='Girls Reg'!$B$12 -> SJV | C4: ='Girls Reg'!C21 -> 661 | D4: ='Girls Reg'!D21 -> 718 | E4: 1379 | F4: ='Girls Reg'!E21 -> 705 | G4: 2084
A5: 4 | B5: ='Girls Reg'!$B$42 -> Keyport | C5: ='Girls Reg'!C51 -> 721 | D5: ='Girls Reg'!D51 -> 707 | E5: 1428 | F5: ='Girls Reg'!E51 -> 642 | G5: 2070
A6: 5 | B6: ='Girls Reg'!$G$12 -> Ocean | C6: ='Girls Reg'!H21 -> 599 | D6: ='Girls Reg'!I21 -> 670 | E6: 1269 | F6: ='Girls Reg'!J21 -> 705 | G6: 1974
A7: 6 | B7: ='Girls Reg'!$B$22 -> Keansburg | C7: ='Girls Reg'!C31 -> 602 | D7: ='Girls Reg'!D31 -> 550 | E7: 1152 | F7: ='Girls Reg'!E31 -> 527 | G7: 1679
A8: 7 | B8: ='Girls Reg'!$G$2 -> Lakewood | C8: ='Girls Reg'!H11 -> 503 | D8: ='Girls Reg'!I11 -> 558 | E8: 1061 | F8: ='Girls Reg'!J11 -> 471 | G8: 1532
A9: 8 | B9: ='Girls Reg'!$G$42 -> Roselle | C9: ='Girls Reg'!H51 -> 481 | D9: ='Girls Reg'!I51 -> 528 | E9: 1009 | F9: ='Girls Reg'!J51 -> 516 | G9: 1525
A10: 9 | B10: ='Girls Reg'!$B$2 -> Henry Hudson | C10: ='Girls Reg'!C11 -> 495 | D10: ='Girls Reg'!D11 -> 505 | E10: 1000 | F10: ='Girls Reg'!E11 -> 475 | G10: 1475
A11: 10 | B11: ='Girls Reg'!$G$22 -> Bayonne | C11: ='Girls Reg'!H31 -> 496 | D11: ='Girls Reg'!I31 -> 444 | E11: 940 | F11: ='Girls Reg'!J31 -> 452 | G11: 1392
A12: 11 | B12: ='Girls Reg'!$G$52 ->  | C12: ='Girls Reg'!H61 -> 0 | D12: ='Girls Reg'!I61 -> 0 | E12: 0 | F12: ='Girls Reg'!J61 -> 0 | G12: 0
A13: 12 | B13: ='Girls Reg'!$B$62 ->  | C13: ='Girls Reg'!C71 -> 0 | D13: ='Girls Reg'!D71 -> 0 | E13: 0 | F13: ='Girls Reg'!E71 -> 0 | G13: 0
A14: 13 | B14: ='Girls Reg'!$B$52 ->  | C14: ='Girls Reg'!C61 -> 0 | D14: ='Girls Reg'!D61 -> 0 | E14: 0 | F14: ='Girls Reg'!E61 -> 0 | G14: 0
A15: 14 | B15: ='Girls Reg'!$B$72 ->  | C15: ='Girls Reg'!C81 -> 0 | D15: ='Girls Reg'!D81 -> 0 | E15: 0 | F15: ='Girls Reg'!$E$81 -> 0 | G15: 0
A16: 15 | B16: ='Girls Reg'!$G$62 ->  | C16: ='Girls Reg'!H71 -> 0 | D16: ='Girls Reg'!I71 -> 0 | E16: 0 | F16: ='Girls Reg'!J71 -> 0 | G16: 0
A17: 16 | B17: ='Girls Reg'!$G$72 ->  | C17: ='Girls Reg'!H78 ->  | D17: ='Girls Reg'!I78 ->  | E17: 0 | F17: ='Girls Reg'!J78 ->  | G17: 0

Sheet New Recap
A1: Boys Team Results | D1: Girls Team Results | G1: Boys Individual Awards
B2: (3 Games) | C2: Total | E2: (3 Games) | F2: Total | G2: (First Series)
A3: 1 | B3: Ocean | C3: 2651 | D3: 1 | E3: Matawan | F3: 2512 | G3: High Game
A4: 2 | B4: Roselle | C4: 2531 | D4: 2 | E4: Middletown North | F4: 2184 | G4: Elizjah Boone | H4: Roselle | I4: 267
A5: 3 | B5: Bayonne | C5: 2479 | D5: 3 | E5: SJV | F5: 2084 | G5: High Series
A6: 4 | B6: SJV | C6: 2161 | D6: 4 | E6: Keyport | F6: 2070 | G6: Elizjah Boone | H6: Roselle | I6: 632
A7: 5 | B7: Keansburg | C7: 2149 | D7: 5 | E7: Ocean | F7: 1974 | G7: Girls Individual Awards
A8: 6 | B8: Henry Hudson | C8: 2148 | D8: 6 | E8: Keansburg | F8: 1679 | G8: (First Series)
A9: 7 | B9: Matawan | C9: 2074 | D9: 7 | E9: Lakewood | F9: 1532 | G9: High Game
A10: 8 | B10: Lakewood | C10: 1771 | D10: 8 | E10: Roselle | F10: 1525 | G10: Kiernan McShane | H10: Matawan | I10: 237
A11: 9 | B11: Mater Dei | C11: 1701 | D11: 9 | E11: Henry Hudson | F11: 1475 | G11: High Series
A12: 10 | B12: Keyport | C12: 1639 | D12: 10 | E12: Bayonne | F12: 1392 | G12: Faith Smith | H12: Matawan | I12: 582
A13: Boys Individual Semi-Final | D13: Girls Individual Semi-Final
A14: Seed | C14: Semi Total | D14: Seed | F14: Semi Total
A15: 1 | B15: Elizjah Boone | C15: 171 | D15: 1 | E15: Faith Smith | F15: 210
A16: 2 | B16: Michael DeGilio | C16: 179 | D16: 2 | E16: Caylei Hoffman | F16: 153
A17: 3 | B17: Robbie Hughes | C17: 158 | D17: 3 | E17: Laura McConnon | F17: 169
A18: 4 | B18: Austin Torres | C18: 210 | D18: 4 | E18: Kimberly Kutschman | F18: 202
A19: 5 | B19: Luis Torres | C19: 185 | D19: 5 | E19: Katie Devoe | F19: 175
A20: 6 | B20: Matt Nilan | C20: 143 | D20: 6 | E20: Casey Russomano | F20: 157
A21: 7 | B21: Aaron Reingold | C21: 192 | D21: 7 | E21: Kiernan McShane | F21: 180
A22: 8 | B22: Jamarion Wright | C22: 143 | D22: 8 | E22: Eliabeth Brogna | F22: 184
A23: Boys Individual Final | D23: Girls Individual Final
A24: Result | D24: Result
A25: 1 | B25: Aaron Reingold | C25: 226 | D25: 1 | E25: Faith Smith | F25: 187
A26: 2 | B26: Luis Torres | C26: 225 | D26: 2 | E26: Elizabeth Brogna | F26: 169
A27: 3 | B27: Michael DeGilio | C27: 168 | D27: 3 | E27: Kiernan McShane | F27: 166
A28: 4 | B28: Austin Torres | C28: 139 | D28: 4 | E28: Kimberly Kutschman | F28: 148

Sheet Recap
A1: Boys Team Results | D1: Final (Baker - Best of 3) | G1: Girls Team Results
B2: (3 Games) | C2: Total | H2: (3 Games) | I2: Total
A3: 1 | D3: Boys | G3: 1
A4: 2 | D4: TOMS RIVER SOUTH def. Howell 2-1 | G4: 2
A5: 3 | G5: 3
A6: 4 | D6: Girls | G6: 4
A7: 5 | D7: HOWELL def. Brick 2-1 | G7: 5
A8: 6 | G8: 6
A9: 7 | D9: Boys Individual Results | G9: 7
A10: 8 | G10: 8
A11: 9 | D11: High Game | G11: 9
A12: 10 | D12: Thomas McKeon | E12: Keansburg | F12: 279 | G12: 10
A13: 11 | D13: High Series
A14: 12 | D14: Luis Torres | E14: Abraham Clark (Roselle) | F14: 692
A15: 13 | D15: Girls Individual Results
D17: High Game
D18: Hannah Dalton | E18: Toms River South | F18: 232
D19: High Series
D20: Caylin Ryan | E20: Brick | F20: 581
